Workbook

Sheet Integración de PAA
M64: Versión 5 - 31/01/2022

Sheet Plan Acción
D4: PLAN DE ACCION ANUAL FINDETER 2022
B10: Perspectiva Estratégica | C10: Objetivo Estratégico | D10: Dependencia | E10: Código Proyecto SIGEP | F10: Nombre de la tarea | G10: Descripción | H10: Presupuesto | I10: Responsable de tarea | J10: Fecha Inicio | K10: Fecha Fin | L10: Fuente de Financiación | M10: Indicador (Si Aplica) | N10: Fórmula | O10: Meta 2022 | P10: Observaciones | Q10: Seguimiento SPI Trimestre 4 | R10: Avance planeado - Trimestre 1 | S10: Avance planeado - Trimestre 12 | T10: Avance planeado - Trimestre 13 | U10: Avance planeado - Trimestre 14 | V10: Avance ejecutado - Trimestre 1 | W10: Avance ejecutado - Trimestre 2 | X10: Avance ejecutado - Trimestre 3 | Y10: Avance ejecutado - Trimestre 4
B11: CAPACIDADES | C11: 16.Consolidar y promover la transformación digital de nuestra Entidad | D11: Vicepresidencia de Operaciones | E11: VO-DT-Robot Process Automation RPA | F11: Robot Process Automation RPA | G11: Este proyecto esta orientado a impulsar la transformación digital en la Entidad, incrementando la eficiencia operativa de esta, por medio del empleo de tecnologías de robotización de actividades, las cuales permiten eliminar tareas manuales y repetitivas dentro de procesos clave de negocio, así como reducir el riesgo por falla humana en el desarrollo de los mismos. | H11: 50578611 | I11: INGRID CATALINA GIRALDO CARDONA | J11: 2021-02-15 | K11: 2022-04-06 | L11: Findeter | M11: Cumplimiento del Cronograma (SPI) | N11: % Avance Real / % Avance Programado | O11: 0.95 | P11: El proyecto avanza según su planeación en 2021 | Q11: 0.95 | R11: 0.95 | S11: 0.95 | T11: 0.95 | U11: 0.95
B12: GESTIÓN INTEGRAL | C12: 6. Aumentar la efectividad de la gestión comercial | D12: Vicepresidencia Comercial | E12: VC-CRM Productos No financieros | F12: CRM Productos No financieros | G12: Robustecer el flujo de trabajo de los procesos de gestión de ventas, gestión de oportunidades de negocios, evaluación y estructuración y oportunidades de negocios, formalización de convenios y contratos con la implementación de los requerimientos necesarios para el debido seguimiento y control de la Gestión Comercial de productos NO Financieros. | H12: 55000000 | I12: MARIA AMPARO ARANGO VALENCIA | J12: 2021-07-26 | K12: 2022-08-01 | L12: Findeter | M12: Cumplimiento del Cronograma (SPI) | N12: % Avance Real / % Avance Programado | O12: 0.95 | P12: El proyecto avanza según su planeación en 2022 | Q12: 0.95 | R12: 0.95 | S12: 0.95 | T12: 0.95 | U12: 0.95
B13: CAPACIDADES | C13: 16.Consolidar y promover la transformación digital de nuestra Entidad | D13: Vicepresidencia Técnica | E13: VT-GT-Solucion Tecnologica Core Tecnico | F13: Solución Tecnológica Productos - Core Técnico | G13: Implementar una solución tecnológica que permita consolidar e integrar los sistemas de información que apoyan los productos no financiero (planeación territorial, formulación de proyectos y supervisión de proyectos para terceros). | H13: 150000000 | I13: JUAN JOSE OYUELA | J13: 2021-05-24 | K13: 2022-06-30 | L13: Findeter | M13: Cumplimiento del Cronograma (SPI) | N13: % Avance Real / % Avance Programado | O13: 0.95 | P13: El proyecto avanza según su planeación en 2023 | Q13: 0.95 | R13: 0.95 | S13: 0.95 | T13: 0.95 | U13: 0.95
B14: CAPACIDADES | C14: 15. Fortalecer la gestión y administración de riesgos consolidados para generar un adecuado ambiente de control | D14: Vicepresidencia de Riesgos | E14: VR-Implementación SIAR | F14: Implementación Sistema Integral de Administración de Riesgos – SIAR | G14: Implementar el Sistema Integral de Administración de Riesgos – SIAR de acuerdo con lo establecido en la Circular Externa 018 de la Superintendencia Financiera de Colombia. | H14: 0 | I14: LEONARDO FABIO RAMOS LOZADA | J14: 2021-12-06 | K14: 2023-06-01 | L14: Findeter | M14: Cumplimiento del Cronograma (SPI) | N14: % Avance Real / % Avance Programado | O14: 0.95 | P14: Proyecto sin iniciar | Q14: 0.95 | R14: 0.95 | S14: 0.95 | T14: 0.95 | U14: 0.95
B15: CAPACIDADES | C15: 15. Fortalecer la gestión y administración de riesgos consolidados para generar un adecuado ambiente de control | D15: Vicepresidencia de Riesgos | E15: VR-Gestión identidades fase 2 | F15: Gestión de identidades | G15: Definir perfiles en las aplicaciones internas establecidas en el DRP y que soportan los procesos críticos, haciendo la correspondiente homologación con los perfiles establecidos por talento humano. | H15: 0 | I15: LEONARDO FABIO RAMOS LOZADA | J15: 2021-10-13 | K15: 2022-12-30 | L15: Findeter | M15: Cumplimiento del Cronograma (SPI) | N15: % Avance Real / % Avance Programado | O15: 0.95 | P15: Proyecto sin iniciar | Q15: 0.95 | R15: 0.95 | S15: 0.95 | T15: 0.95 | U15: 0.95
B16: CAPACIDADES | C16: 16.Consolidar y promover la transformación digital de nuestra Entidad | D16: Vicepresidencia de Operaciones | E16: VO-DT-Nuevas Formas Trabajo Digital Fase III | F16: Nuevas formas de trabajo digital fase III (Intercambio seguro - one drive) | G16: Incluye áreas críticas que intercambian información por one drive (Vice Técnica, Crédito directo y operaciones) | H16: 0 | I16: INGRID CATALINA GIRALDO CARDONA | J16: 2022-02-01 | K16: 2022-09-01 | L16: Findeter | M16: Cumplimiento del Cronograma (SPI) | N16: % Avance Real / % Avance Programado | O16: 0.95 | P16: Proyecto sin iniciar | Q16: 0.95 | R16: 0.95 | S16: 0.95 | T16: 0.95 | U16: 0.95
B17: CAPACIDADES | C17: 16.Consolidar y promover la transformación digital de nuestra Entidad | D17: Vicepresidencia de Operaciones | E17: VO-DT-CRM a la nube | F17: CRM a la Nube | G17: Migrar el CRM de la Entidad a la nube | H17: 150000000 | I17: INGRID CATALINA GIRALDO CARDONA | J17: 2022-06-01 | K17: 2023-03-01 | L17: Findeter | M17: Cumplimiento del Cronograma (SPI) | N17: % Avance Real / % Avance Programado | O17: 0.95 | P17: Proyecto sin iniciar | Q17: 0.95 | R17: 0.95 | S17: 0.95 | T17: 0.95 | U17: 0.95
B18: CAPACIDADES | C18: 16.Consolidar y promover la transformación digital de nuestra Entidad | D18: Vicepresidencia de Operaciones | E18: VO-DT-Sol Tec Core Tecnico fase 2 | F18: Core Técnico Fase 2 (productos no financieros) | G18: Implementar una herramienta que soporte procesos de Banca de inversión, desarrollo territorial, gerencia de proyectos, ciudades competitivas | H18: 290000000 | I18: INGRID CATALINA GIRALDO CARDONA | J18: 2022-07-01 | K18: 2023-08-01 | L18: Findeter | M18: Cumplimiento del Cronograma (SPI) | N18: % Avance Real / % Avance Programado | O18: 0.95 | P18: Proyecto sin iniciar | Q18: 0.95 | R18: 0.95 | S18: 0.95 | T18: 0.95 | U18: 0.95
B19: CAPACIDADES | C19: 16.Consolidar y promover la transformación digital de nuestra Entidad | D19: Presidencia | E19: PR-Gobierno de Datos Fase V | F19: Gobierno de datos fase V | G19: Gobierno de datos fase V | H19: 0 | I19: Luz Amparo Gutiérrez | J19: 2022-01-15 | K19: 2022-12-30 | L19: Findeter | M19: Cumplimiento del Cronograma (SPI) | N19: % Avance Real / % Avance Programado | O19: 0.95 | P19: Proyecto sin iniciar | Q19: 0.95 | R19: 0.95 | S19: 0.95 | T19: 0.95 | U19: 0.95
B20: CAPACIDADES | C20: 11.Gestionar eficientemente nuestra comunicación corporativa | D20: Vicepresidencia Comercial | E20: VC-GC-Ecosistema Digital | F20: Ecosistema digital | G20: Implementar el ecosistema digital en Findeter, como una red de elementos o componentes que le permitirá a la Entidad tener un mejor entorno digital. El ecosistema es, además, la evolución del actual sitio web e intranet de la Entidad, que busca fortalecer la gestión comercial apoyándose en la definición e implementación de la estrategia de mercadeo y en la tecnología. | H20: 0 | I20: PAOLA ANDREA ROJAS | J20: 2019-05-06 | K20: 2022-02-22 | L20: Findeter | M20: Cumplimiento del Cronograma (SPI) | N20: Cumplimiento del Cronograma (SPI) | O20: 0.95 | P20: Proyecto exitoso. Cerrado en el tiempo previsto | Q20: 0.95 | R20: 0.95 | S20: 0.95 | T20: 0.95 | U20: 0.95
B21: CAPACIDADES | C21: 16.Consolidar y promover la transformación digital de nuestra Entidad | D21: Vicepresidencia de Operaciones | E21: VC-IN-Estrategia de analitica de datos | F21: Estrategia de analítica de datos | G21: El proyecto consiste en llevar a cabo análisis de información histórica de clientes de la Entidad, a través de un modelo de analítica predictiva, que permita caracterizar, identificar y segmentar los clientes para lograr una optimización de oportunidades de negocio. | H21: 0 | I21: MARIA AMPARO ARANGO VALENCIA | J21: 2020-03-05 | K21: 2022-01-27 | L21: Findeter | M21: Cumplimiento del Cronograma (SPI) | N21: % Avance Real / % Avance Programado | O21: 0.95 | P21: Proyecto exitoso. Cerrado en el tiempo previsto | Q21: 0.95 | R21: 0.95 | S21: 0.95 | T21: 0.95 | U21: 0.95
B22: CAPACIDADES | C22: 16.Consolidar y promover la transformación digital de nuestra Entidad | D22: Vicepresidencia de Planeación | E22: VP-GP-Gestion Cambio Cultura mas Digital | F22: Gestión del cambio hacía una cultura más digital | G22: Apoyar en la transformación digital de la entidad, a través del acompañamiento para la implementación de retos y generar capacidades de gestión del cambio en los colaboradores de Findeter. | H22: 24000000 | I22: JORGE LUIS GIRALDO GONZALEZ | J22: 2021-03-01 | K22: 2022-01-01 | L22: Findeter | M22: Cumplimiento del Cronograma (SPI) | N22: % Avance Real / % Avance Programado | O22: 0.95 | P22: Proyecto exitoso. Cerrado en el tiempo previsto | Q22: =IFERROR(Seg_Plan_Accion[[#This Row],[Avance ejecutado - Trimestre 4]]/#REF!,"N/A") -> N/A
B23: GESTIÓN INTEGRAL | C23: 9. Aumentar la financiaciónde operaciones y proyectos en sectores financiables | D23: Vicepresidencia Comercial | E23: VO-DC-Credito Directo fase 2 | F23: Servicios de Crédito Directo Fase II | G23: Robustecer el flujo de trabajo de crédito directo con la implementación de los requerimientos pendientes y la estabilización de los incidentes recurrentes junto con las integraciones de los sistemas de información del proceso. | H23: 0 | I23: INGRID CATALINA GIRALDO CARDONA | J23: 2021-02-16 | K23: 2022-02-03 | L23: fINDETER | M23: Cumplimiento del Cronograma (SPI) | N23: % Avance Real / % Avance Programado | O23: 0.95 | P23: El proyecto se encuentra en su ultima fase de ejecución | Q23: =IFERROR(Seg_Plan_Accion[[#This Row],[Avance ejecutado - Trimestre 4]]/#REF!,"N/A") -> N/A
B24: CAPACIDADES | C24: 11.Gestionar eficientemente nuestra comunicación corporativa; | D24: Vicepresidencia Comercial | E24: VC-GC-JM-Experiencia usuario fase 2 | F24: Experiencia usuario Fase II (Solución experiencia de usuario) | G24: Implementar la solución identificada en la primera etapa de la investigación. | H24: 0 | I24: CARLOS ARTURO DIAZ PRIETO | J24: 2022-01-15 | K24: 2022-12-30 | L24: Findeter | M24: Cumplimiento del Cronograma (SPI) | N24: % Avance Real / % Avance Programado | O24: 0.95 | P24: Proyecto sin iniciar | Q24: =IFERROR(Seg_Plan_Accion[[#This Row],[Avance ejecutado - Trimestre 4]]/#REF!,"N/A") -> N/A
B25: CAPACIDADES | C25: 11.Gestionar eficientemente nuestra comunicación corporativa; | D25: Vicepresidencia Comercial | E25: VC-GC-JM-Experiencia de usuario | F25: Experiencia de Usuario Fase I | G25: Identificar e interpretar todas las relaciones y experiencias que el cliente del producto Redescuento tiene con el servicio en cada una de las etapas del proceso y a través de los diferentes canales. | H25: 0 | I25: CARLOS ARTURO DIAZ PRIETO | J25: 2021-06-01 | K25: 2022-02-04 | L25: Findeter | M25: Cumplimiento del Cronograma (SPI) | N25: % Avance Real / % Avance Programado | O25: 0.95 | P25: 0.95 | Q25: =IFERROR(Seg_Plan_Accion[[#This Row],[Avance ejecutado - Trimestre 4]]/#REF!,"N/A") -> N/A
H26: =SUBTOTAL(109,H11:H25) -> 719578611

Sheet Pinar
D3: PLAN INSTITUCIONAL DE ARCHIVOS - PINAR FINDETER 2022
B12: Dependencia | C12: Nombre de la tarea | D12: Descripción | E12: Política de Gestión y Desempeño | F12: Responsable de tarea | G12: Fecha Inicio | H12: Fecha Fin | I12: Fuente de Financiación
B13: Jefatura de Servicios Generales | C13: Revisar y ajustar estandares de publicación de los instrumentos archivisticos de gestión de información. | D13: Revisar y ajustar documentos de gestión documental que se requiere publicar en virtud de la Ley de transparencia | E13: Gestión Documental | F13: Colaborador Jefatura de Servicios Generales Claudia Yovanna Moreno Sandra Patricia Millan | G13: 44562 | H13: 44925 | I13: Funcionamiento
B14: Jefatura de Servicios Generales | C14: Capacitar Procesos Archivisticos | D14: Se realizaran capacitaciones a trabajadores nuevos y retroalimentar a trabajadores antiguos en los procesos archivísticos. | E14: Gestión Documental | F14: Colaborador Jefatura de Servicios Generales Claudia Yovanna Moreno Sandra Patricia Millan | G14: 44593 | H14: 44925

Sheet PAdquisiciones
D5: PLAN ANUAL DE ADQUISICIONES FINDETER 2022
B13: Rubro | C13: Nombre | D13: Centro de Costo | E13: No. De Producto | F13: Descripción de los Bienes o Servicio a Contratar | G13: Fecha Estimada de Contratacion Reprogramada | H13: Valor Presupuestal
B14: Código | F14: Servicios a Contratar
B15: 203010602 | C15: Capacitacion | D15: 260 | E15: 26 | F15: Capacitaciones a nivel general administradas por la jefatura de talento humano | G15: 2021-12-31 | H15: 120000000
B16: 203010602 | C16: Capacitacion | D16: 461 | E16: 26 | F16: Maestria en mercadeo | G16: 2021-12-31 | H16: 41325000
B17: 203010604 | C17: Bienestar Social | D17: 260 | E17: 25 | F17: Contratación para el desarrollo de actividades del programa calidad de vida, bienestar y modelo efr dirigidas a los colaboradores de findeter relacionadas con recreación, deporte, cultura, mercadeo social, salud, eventos sociales, escenarios e instalaciones adecuadas, entre otras. | G17: 2021-12-31 | H17: 120000000
B18: 203020201 | C18: Gastos De Viaje A Terceros Nacionales | D18: 500 | E18: 48 | F18: Gastos de viaje contratistas | G18: 2021-12-31 | H18: 10000000
B19: 203020201 | C19: Gastos De Viaje A Terceros Nacionales | D19: 500 | E19: 48 | F19: Gastos de viaje contratistas | G19: 2021-12-31 | H19: 10000000
B20: 203020201 | C20: Gastos De Viaje A Terceros Nacionales | D20: 870 | E20: 48 | F20: Gastos de viaje para realizar la evaluacion ambiental y social y emitir el respectivo concepto, a los proyectos que vaya a financiar findeter | G20: 2021-12-31 | H20: 15000000
B21: 203030102 | C21: Revisoria Fiscal | D21: 70 | E21: 179 | F21: Revisoria fiscal | G21: 2021-12-31 | H21: 519657856
B22: 203030103 | C22: Asesorias Juridicas | D22: 210 | E22: 58 | F22: Actualizacion del normograma de findeter de acuerdo a las disposiciones legales vigentes - avance juridico | G22: 2021-12-31 | H22: 56849100
B23: 203030103 | C23: Asesorias Juridicas | D23: 210 | E23: 58 | F23: Prestar el servicio de vigilancia y/o control de los procesos donde findeter sea demandante o demandado, los cuales se adelantan en los diferetes despachos judiciales del pais - lupa | G23: 2021-12-31 | H23: 13360000
B24: 203030103 | C24: Asesorias Juridicas | D24: 510 | E24: 58 | F24: Asesoría y acompañamiento jurídico en la ejecución de los proyectos correspondientes a los programas que se ejecuten en la vicepresidencia técnica de findeter, en el marco de los contratos o convenios interadministrativos firmados con entidades del orden nacional | G24: 2021-12-31 | H24: 2700000
B25: 203030103 | C25: Asesorias Juridicas | D25: 510 | E25: 58 | F25: Asesoría y acompañamiento jurídico en la ejecución de los proyectos correspondientes a los programas que se ejecuten en la vicepresidencia técnica de findeter, en el marco de los contratos o convenios interadministrativos firmados con entidades del orden nacional | G25: 2021-12-31 | H25: 2366666
B26: 203030104 | C26: Asesorias Financieras | D26: 820 | E26: 731 | F26: Asesoria regimen cambiario (bolsa de 80 horas a $520.000 +iva) | G26: 2021-12-31 | H26: 36652000
B27: 203030105 | C27: Otras Asesorias | D27: 125 | E27: 65 | F27: Tercerización de la oci de getión. Desempeñar los roles de: evaluación y asesoría en temas relacionados con auditoria interna de gestión. Contrato vigente ernst young. | G27: 2021-12-31 | H27: 898450000
B28: 203030105 | C28: Otras Asesorias | D28: 245 | E28: 298 | F28: Administración del inventario, conciliación y gestión de los activos de la entidad bajo las normas niif y los bienes muebles que están en condición de arrendamiento, así como los avalúos de inmuebles que requiera findeter, mediante el uso de una solución tecnológica que facilite la gestión y automatización del proceso | G28: 2021-12-31 | H28: 31984059
B29: 203030105 | C29: Otras Asesorias | D29: 260 | E29: 76 | F29: Contratación medición de clima organizacional. | G29: 2021-12-31 | H29: 27988800
B30: 203030105 | C30: Otras Asesorias | D30: 260 | E30: 76 | F30: Prestar el servicio de consulta de antecendetes, referencias laborales, verificación documental- hoja de vida y visita domiciliaria para las personas que ingresen a trabajar a findeter”. | G30: 2021-12-31 | H30: 1750000
B31: 203030105 | C31: Otras Asesorias | D31: 260 | E31: 76 | F31: Prestar el servicio de consulta de antecendetes, referencias laborales, verificación documental- hoja de vida y visita domiciliaria para las personas que ingresen a trabajar a findeter”. | G31: 2021-12-31 | H31: 3858772
B32: 203030105 | C32: Otras Asesorias | D32: 260 | E32: 76 | F32: Contratación administración herramienta de gestión del desarrollo y aplicación de las evaluaciones, informes y retroalimentación (kpis, evaluación 360). | G32: 2021-12-31 | H32: 37254344
B33: 203030105 | C33: Otras Asesorias | D33: 460 | E33: 63 | F33: Asesoría y acompañamiento en comunicaciones estratégicas | G33: 2021-12-31 | H33: 33092000
B34: 203030105 | C34: Otras Asesorias | D34: 460 | E34: 291 | F34: Asesorias servicio de monitoreo de medios de comunicación | G34: 2021-12-31 | H34: 9966590
B35: 203030105 | C35: Otras Asesorias | D35: 460 | E35: 642 | F35: Diseño y diagramación de productos editoriales | G35: 2021-12-31 | H35: 26640000
B36: 203030105 | C36: Otras Asesorias | D36: 461 | E36: 642 | F36: Servicio defensor del consumidor financiero | G36: 2021-12-31 | H36: 28023131
B37: 203030105 | C37: Otras Asesorias | D37: 471 | E37: 642 | F37: Asesor movilidad universal para tres áreas de la entidad | G37: 2021-12-31 | H37: 63800000
B38: 203030105 | C38: Otras Asesorias | D38: 500 | E38: 642 | F38: Contratos por prestación de servicios para supervisión de programas de la vt y profesionales especializados para el diseño y consultoría de obras civiles | G38: 2021-12-31 | H38: 11000000
B39: 203030105 | C39: Otras Asesorias | D39: 500 | E39: 642 | F39: Contratos por prestación de servicios para supervisión de programas de la vt y profesionales especializados para el diseño y consultoría de obras civiles | G39: 2021-12-31 | H39: 11000000
B40: 203030105 | C40: Otras Asesorias | D40: 510 | E40: 642 | F40: Contratos por prestación de servicios para supervisión de programas de la vt y profesionales especializados para el diseño y consultoría de obras civiles | G40: 2021-12-31 | H40: 63000000
B41: 203030105 | C41: Otras Asesorias | D41: 510 | E41: 642 | F41: Contratos por prestación de servicios para supervisión de programas de la vt y profesionales especializados para el diseño y consultoría de obras civiles | G41: 2021-12-31 | H41: 49000000
B42: 203030105 | C42: Otras Asesorias | D42: 510 | E42: 642 | F42: Contratos por prestación de servicios para supervisión de programas de la vt y profesionales especializados para el diseño y consultoría de obras civiles | G42: 2021-12-31 | H42: 2580000
B43: 203030105 | C43: Otras Asesorias | D43: 510 | E43: 642 | F43: Contratos por prestación de servicios para supervisión de programas de la vt y profesionales especializados para el diseño y consultoría de obras civiles | G43: 2021-12-31 | H43: 3000000
B44: 203030105 | C44: Otras Asesorias | D44: 510 | E44: 642 | F44: Contratos por prestación de servicios para supervisión de programas de la vt y profesionales especializados para el diseño y consultoría de obras civiles | G44: 2021-12-31 | H44: 3600000
B45: 203030105 | C45: Otras Asesorias | D45: 510 | E45: 642 | F45: Contratos por prestación de servicios para supervisión de programas de la vt y profesionales especializados para el diseño y consultoría de obras civiles | G45: 2021-12-31 | H45: 3100000
B46: 203030105 | C46: Otras Asesorias | D46: 640 | E46: 642 | F46: Consultoría para dirección de estudios económicos: medición de cumplimiento de ods de findeter | G46: 2021-12-31 | H46: 29920000
B47: 203030105 | C47: Otras Asesorias | D47: 640 | E47: 642 | F47: Contratación asesor de apoyo en análisis y elaboración de estudios económicos, sectoriales y financieros. | G47: 2021-12-31 | H47: 11424000
B48: 203030105 | C48: Otras Asesorias | D48: 702 | E48: 642 | F48: Servicio de seguridad gestionada soportado en un soc (centro de operación de servicio de seguridad gestionada soportado en un soc (centro de operacion de seguridad) que incluya la recoleccion, monitoreo, analisis, correlacion y gestión de alarmas, eventos e incidentes de seguridad de la informacion y ciberseguridad, pruebas de intrusion, ingeniería social y analisis de vulnerabilidades. | G48: 2021-12-31 | H48: 412000000
B49: 203030105 | C49: Otras Asesorias | D49: 810 | E49: 132 | F49: Soporte y mantenimiento del software de assista (herramienta de asistencia técnica) proactivanet consultoria especializada | G49: 2021-12-31 | H49: 22444995
B50: 203030105 | C50: Otras Asesorias | D50: 810 | E50: 418 | F50: Servicio especializado de mesa de servicios especializados | G50: 2021-12-31 | H50: 489158496
B51: 203030105 | C51: Otras Asesorias | D51: 810 | E51: 642 | F51: Sistema de gestión de talento humano (nomina) | G51: 2021-12-31 | H51: 33804654
B52: 203030105 | C52: Otras Asesorias | D52: 810 | E52: 935 | F52: Gestión documental (correspondencia) | G52: 2021-12-31 | H52: 105178500
B53: 203030105 | C53: Otras Asesorias | D53: 810 | E53: 935 | F53: Proyecto gobierno de datos (modelo gestion y gobierno)-arquitecto | G53: 2021-12-31 | H53: 28000000
B54: 203030105 | C54: Otras Asesorias | D54: 810 | E54: 935 | F54: Automatización (chatbot cognitivo findeter) bolsa de horas para el desarrollo de flujos conversacionales | G54: 2021-12-31 | H54: 2320500
B55: 203030105 | C55: Otras Asesorias | D55: 810 | E55: 935 | F55: Rpa (automatización robótica de procesos) | G55: 2021-12-31 | H55: 50396500
B56: 203030105 | C56: Otras Asesorias | D56: 860 | E56: 67 | F56: Asesoria tributaria integral y permanente de findeter | G56: 2021-12-31 | H56: 61880000
B57: 203030105 | C57: Otras Asesorias | D57: 860 | E57: 642 | F57: Asesoría niif 9 | G57: 2021-12-31 | H57: 66045000
B58: 203030105 | C58: Otras Asesorias | D58: 870 | E58: 642 | F58: Realizar la evaluacion ambiental y social y emitir el respectivo concepto, a los proyectos que vaya a financiar findeter | G58: 2021-12-31 | H58: 26520000
B59: 203050101 | C59: Equipo De Computo, Comunicacion Y Multifuncionales | D59: 245 | E59: 938 | F59: Automatización del manejo de activos, por medio de la tecnología de radio referencia, optimizando los procesos operativos y control de los mismos. | G59: 2021-12-31 | H59: 58270242
B60: 203050101 | C60: Equipo De Computo, Comunicacion Y Multifuncionales | D60: 810 | E60: 13 | F60: Arrendamiento de impresoras | G60: 2021-12-31 | H60: 14226340
B61: 203050101 | C61: Equipo De Computo, Comunicacion Y Multifuncionales | D61: 810 | E61: 14 | F61: Servicio de datacenter centurylink | G61: 2021-12-31 | H61: 1259474793
B62: 203050101 | C62: Equipo De Computo, Comunicacion Y Multifuncionales | D62: 810 | E62: 20 | F62: Arrendamiento de equipos de telefonia sobre ip | G62: 2021-12-31 | H62: 46026279
B63: 203050101 | C63: Equipo De Computo, Comunicacion Y Multifuncionales | D63: 810 | E63: 410 | F63: Arrendamiento de ups | G63: 2021-12-31 | H63: 14768661
B64: 203050101 | C64: Equipo De Computo, Comunicacion Y Multifuncionales | D64: 810 | E64: 716 | F64: Arrendamiento equipos de computo y portatiles | G64: 2021-12-31 | H64: 1622873448
B65: 203050101 | C65: Equipo De Computo, Comunicacion Y Multifuncionales | D65: 810 | E65: 718 | F65: Sistema de gestión de talento humano (nomina) | G65: 2021-12-31 | H65: 38319840
B66: 203050101 | C66: Equipo De Computo, Comunicacion Y Multifuncionales | D66: 810 | E66: 753 | F66: Canales para master trader (cao) aplicaciones bvc | G66: 2021-12-31 | H66: 8258399
B67: 203050101 | C67: Equipo De Computo, Comunicacion Y Multifuncionales | D67: 820 | E67: 753 | F67: Servicio canales de comunicación con terceros (sebra-bvc-superf) | G67: 2021-12-31 | H67: 27418724
B68: 203050101 | C68: Equipo De Computo, Comunicacion Y Multifuncionales | D68: 860 | E68: 943 | F68: Facturacion electronica findeter | G68: 2021-12-31 | H68: 246938
B69: 203050102 | C69: Locales, Oficinas, Parqueaderos Y Otros | D69: 245 | E69: 6 | F69: Arrendamiento calle av 24 cao bogota | G69: 2021-12-31 | H69: 4112902
B70: 203050102 | C70: Locales, Oficinas, Parqueaderos Y Otros | D70: 245 | E70: 6 | F70: Arrendamiento calle av 24 cao bogota | G70: 2021-12-31 | H70: 214694
B71: 203050102 | C71: Locales, Oficinas, Parqueaderos Y Otros | D71: 500 | E71: 6 | F71: Arrendandamiento piso 3 calle 104 | G71: 2021-12-31 | H71: 471509445
B72: 203050102 | C72: Locales, Oficinas, Parqueaderos Y Otros | D72: 500 | E72: 6 | F72: Arrendamiento piso 6 calle 104 | G72: 2021-12-31 | H72: 519699873
B73: 203050102 | C73: Locales, Oficinas, Parqueaderos Y Otros | D73: 500 | E73: 6 | F73: Arrendandamiento piso 6 ii calle 104 | G73: 2021-12-31 | H73: 370207040
B74: 203050102 | C74: Locales, Oficinas, Parqueaderos Y Otros | D74: 500 | E74: 6 | F74: Arrendamiento providencia | G74: 2021-12-31 | H74: 75200000
B75: 203050102 | C75: Locales, Oficinas, Parqueaderos Y Otros | D75: 500 | E75: 6 | F75: Arrendamiento apartamento san andres | G75: 2021-12-31 | H75: 3900000
B76: 203050102 | C76: Locales, Oficinas, Parqueaderos Y Otros | D76: 500 | E76: 6 | F76: Arrendamiento 4 habitaciones-casa oneil rock providencia | G76: 2021-12-31 | H76: 17524000
B77: 203050102 | C77: Locales, Oficinas, Parqueaderos Y Otros | D77: 500 | E77: 6 | F77: Arrendamiento 4 habitaciones-casa oneil rock providencia | G77: 2021-12-31 | H77: 64333333
B78: 203050102 | C78: Locales, Oficinas, Parqueaderos Y Otros | D78: 500 | E78: 6 | F78: Arrendamiento 4 habitaciones-casa oneil rock providencia | G78: 2021-12-31 | H78: 54715023
B79: 203050102 | C79: Locales, Oficinas, Parqueaderos Y Otros | D79: 1000 | E79: 6 | F79: Arrendamiento cartagena | G79: 2021-12-31 | H79: 1700000
B80: 203050105 | C80: Archivos Tecnicos | D80: 245 | E80: 3 | F80: Recepción, administración, custodia, organización, reprografía, conservación y demás actividades derivadas de la función archivística | G80: 2021-12-31 | H80: 268625931
B81: 203050105 | C81: Archivos Tecnicos | D81: 245 | E81: 3 | F81: Servicio de intervención y digitalización de documentos que se encuentran en custodia en el archivo central (identificación, clasificación, ordenación, foliación, alistamiento, digitalización y descripción) | G81: 2021-12-31 | H81: 511535628
B82: 203050105 | C82: Archivos Tecnicos | D82: 245 | E82: 3 | F82: Servicio de intervención y digitalización de documentos que se encuentran en custodia en el archivo central (identificación, clasificación, ordenación, foliación, alistamiento, digitalización y descripción) | G82: 2021-12-31 | H82: 92424886
B83: 203050305 | C83: Mantenimiento De Vehiculos | D83: 245 | E83: 746 | F83: Supermotos - mantenimiento de motocicleta | G83: 2021-12-31 | H83: 2000000
B84: 203050305 | C84: Mantenimiento De Vehiculos | D84: 245 | E84: 746 | F84: Distoyota - mantenimiento de vehiculo toyota presidencia | G84: 2021-12-31 | H84: 3000000
B85: 203050307 | C85: Mantenimiento De Edificios Y Locales | D85: 245 | E85: 99 | F85: Mantenimiento impermeabilizacion, puntos de anclaje cubierta, vidrios de fachadas | G85: 2021-12-31 | H85: 6261300
B86: 203050307 | C86: Mantenimiento De Edificios Y Locales | D86: 245 | E86: 101 | F86: Mantenimiento marmol lobby | G86: 2021-12-31 | H86: 3036880
B87: 203050307 | C87: Mantenimiento De Edificios Y Locales | D87: 245 | E87: 102 | F87: Suministro de acpm para la planta de energia | G87: 2021-12-31 | H87: 2997401
B88: 203050307 | C88: Mantenimiento De Edificios Y Locales | D88: 245 | E88: 103 | F88: Mantenimiento, preventivo y correctivo de los equipos de bombeo de agua | G88: 2021-12-31 | H88: 4118608
B89: 203050307 | C89: Mantenimiento De Edificios Y Locales | D89: 245 | E89: 104 | F89: Recarga de extintores calle 103 y 104 | G89: 2021-12-31 | H89: 10178070
B90: 203050307 | C90: Mantenimiento De Edificios Y Locales | D90: 245 | E90: 105 | F90: Suministro de acpm para la planta de energia | G90: 2021-12-31 | H90: 4000000
B91: 203050307 | C91: Mantenimiento De Edificios Y Locales | D91: 245 | E91: 109 | F91: Suministro de elementos ferrelectricos | G91: 2021-12-31 | H91: 15000000
B92: 203050307 | C92: Mantenimiento De Edificios Y Locales | D92: 245 | E92: 111 | F92: Mantenimiento equipos aire acondicionado bogota 103 y 104 | G92: 2021-12-31 | H92: 14533870
B93: 203050307 | C93: Mantenimiento De Edificios Y Locales | D93: 245 | E93: 734 | F93: Mantenimiento muro verde fachadas | G93: 2021-12-31 | H93: 11425934
B94: 203050307 | C94: Mantenimiento De Edificios Y Locales | D94: 245 | E94: 734 | F94: Mantenimiento arreglo del piso, puerta parqueadero, cieloraso y demas | G94: 2021-12-31 | H94: 214200
B95: 203050307 | C95: Mantenimiento De Edificios Y Locales | D95: 245 | E95: 947 | F95: Mantenimiento de estacion de cebado para control de plagas y rodeedores | G95: 2021-12-31 | H95: 1190000
B96: 203050307 | C96: Mantenimiento De Edificios Y Locales | D96: 454 | E96: 111 | F96: Mantenimiento equipos aire acondicionado medellin | G96: 2021-12-31 | H96: 2696938
B97: 203050307 | C97: Mantenimiento De Edificios Y Locales | D97: 481 | E97: 104 | F97: Recarga extintores regional pacifico | G97: 2021-12-31 | H97: 642600
B98: 203050307 | C98: Mantenimiento De Edificios Y Locales | D98: 481 | E98: 111 | F98: Mantenimiento equipos aire acondicionado cali | G98: 2021-12-31 | H98: 2884800
B99: 203050307 | C99: Mantenimiento De Edificios Y Locales | D99: 482 | E99: 104 | F99: Recarga extintores regional centro | G99: 2021-12-31 | H99: 428400
B100: 203050307 | C100: Mantenimiento De Edificios Y Locales | D100: 482 | E100: 111 | F100: Mantenimiento equipos aire acondicionado neiva | G100: 2021-12-31 | H100: 1749500
B101: 203050307 | C101: Mantenimiento De Edificios Y Locales | D101: 482 | E101: 111 | F101: Mantenimiento equipos aire acondicionado neiva | G101: 2021-12-31 | H101: 20118
B102: 203050307 | C102: Mantenimiento De Edificios Y Locales | D102: 483 | E102: 104 | F102: Recarga extintor zon eje cafetero | G102: 2021-12-31 | H102: 441490
B103: 203050307 | C103: Mantenimiento De Edificios Y Locales | D103: 483 | E103: 111 | F103: Mantenimiento equipos aire acondicionado pereira | G103: 2021-12-31 | H103: 226100
B104: 203050307 | C104: Mantenimiento De Edificios Y Locales | D104: 483 | E104: 111 | F104: Mantenimiento equipos aire acondicionado pereira | G104: 2021-12-31 | H104: 7280
B105: 203050307 | C105: Mantenimiento De Edificios Y Locales | D105: 491 | E105: 104 | F105: Recarga extintores regional noroccidental | G105: 2021-12-31 | H105: 642600
B106: 203050307 | C106: Mantenimiento De Edificios Y Locales | D106: 491 | E106: 111 | F106: Mantenimiento equipos aire acondicionado medellin | G106: 2021-12-31 | H106: 783438
B107: 203050307 | C107: Mantenimiento De Edificios Y Locales | D107: 491 | E107: 111 | F107: Mantenimiento equipos aire acondicionado medellin | G107: 2021-12-31 | H107: 16816
B108: 203050307 | C108: Mantenimiento De Edificios Y Locales | D108: 492 | E108: 104 | F108: Recarga extintores regional nororiental | G108: 2021-12-31 | H108: 642600
B109: 203050307 | C109: Mantenimiento De Edificios Y Locales | D109: 492 | E109: 111 | F109: Mantenimiento equipos aire acondicionado bucaramanga | G109: 2021-12-31 | H109: 1802159
B110: 203050307 | C110: Mantenimiento De Edificios Y Locales | D110: 493 | E110: 104 | F110: Recarga extintores regional barranquilla-cartagena | G110: 2021-12-31 | H110: 214200
B111: 203050307 | C111: Mantenimiento De Edificios Y Locales | D111: 493 | E111: 111 | F111: Mantenimiento equipos aire acondicionado barranquilla | G111: 2021-12-31 | H111: 264180
B112: 203050307 | C112: Mantenimiento De Edificios Y Locales | D112: 493 | E112: 111 | F112: Mantenimiento equipos aire acondicionado barranquilla | G112: 2021-12-31 | H112: 8507
B113: 203050307 | C113: Mantenimiento De Edificios Y Locales | D113: 493 | E113: 111 | F113: Mantenimiento preventivo y correctivo para los equipos de aire acondicionado de la oficina de monteria | G113: 2021-12-31 | H113: 3239147
B114: 203050307 | C114: Mantenimiento De Edificios Y Locales | D114: 504 | E114: 104 | F114: Recarga extintor san andres | G114: 2021-12-31 | H114: 231812
B115: 203050307 | C115: Mantenimiento De Edificios Y Locales | D115: 504 | E115: 111 | F115: Mantenimiento equipos aire acondicionado san andres | G115: 2021-12-31 | H115: =500000 -> 500000
B116: 203050307 | C116: Mantenimiento De Edificios Y Locales | D116: 504 | E116: 111 | F116: Mantenimiento equipos aire acondicionado san andres | G116: 2021-12-31 | H116: 12075
B117: 203050309 | C117: Mantenimiento De Hardware | D117: 810 | E117: 113 | F117: Mantenimiento equipos redes lan y wifi nivel central | G117: 2021-12-31 | H117: 27059083
B118: 203050309 | C118: Mantenimiento De Hardware | D118: 810 | E118: 195 | F118: Mantenimiento de redes de comunicación interna, cableado estructural, prestar el servicio de mantenimiento preventivo, correctivo y de mejora, adecuación de las redes de datos y eléctrica de sus oficinas. | G118: 2021-12-31 | H118: 936813
B119: 203050309 | C119: Mantenimiento De Hardware | D119: 810 | E119: 410 | F119: Mantenimiento y soporte de ups | G119: 2021-12-31 | H119: 30672611
B120: 203050309 | C120: Mantenimiento De Hardware | D120: 810 | E120: 760 | F120: Soporte y mantenimiento de firewall sonic wall | G120: 2021-12-31 | H120: 2564559
B121: 203050309 | C121: Mantenimiento De Hardware | D121: 810 | E121: 935 | F121: Solucion de almacenamiento para comunicaciones | G121: 2021-12-31 | H121: 199920
B122: 203050310 | C122: Mantenimiento De Software | D122: 245 | E122: 115 | F122: Gestión documental (correspondencia) | G122: 2021-12-31 | H122: 24990000
B123: 203050310 | C123: Mantenimiento De Software | D123: 810 | E123: 90 | F123: Fabrica de software (mantenimiento y desarrollos) | G123: 2021-12-31 | H123: 1209373200
B124: 203050310 | C124: Mantenimiento De Software | D124: 810 | E124: 117 | F124: Alfyn - soporte y mantenimiento portafolio de inversiones de renta fija y cuentas bancarias | G124: 2021-12-31 | H124: 60682450
B125: 203050310 | C125: Mantenimiento De Software | D125: 810 | E125: 119 | F125: Sonda de colombia soporte core financiero - soporte, mantenimiento y desarrollos, del aplicativo financianet. | G125: 2021-12-31 | H125: 221171826
B126: 203050310 | C126: Mantenimiento De Software | D126: 810 | E126: 121 | F126: Mantenimiento de sistema de gestión de relación con el cliente (crm) | G126: 2021-12-31 | H126: 42840000
B127: 203050310 | C127: Mantenimiento De Software | D127: 810 | E127: 122 | F127: Correo corporativo centurylink | G127: 2021-12-31 | H127: 699708218
B128: 203050310 | C128: Mantenimiento De Software | D128: 810 | E128: 411 | F128: Soporte y mantenimiento plataforma end point mc afee | G128: 2021-12-31 | H128: 5355000
B129: 203050310 | C129: Mantenimiento De Software | D129: 810 | E129: 642 | F129: Biblioteca virtual biteca - soporte y mantenimiento de aplicativo. | G129: 2021-12-31 | H129: 6533332
B130: 203050310 | C130: Mantenimiento De Software | D130: 810 | E130: 767 | F130: Isolucion - soporte y mantenimiento de aplicativo sistema de gestión integrado (sgi) | G130: 2021-12-31 | H130: 35387297
B131: 203050310 | C131: Mantenimiento De Software | D131: 810 | E131: 767 | F131: Corvus - xbrl soporte técnico y derecho de actualizaciones - bolsa de horas 100 horas | G131: 2021-12-31 | H131: 12674007
B132: 203050401 | C132: Arreglos Ornamentales | D132: 245 | E132: 1 | F132: Arreglos ornamentales del edificio | G132: 2021-12-31 | H132: 7344000
B133: 203050501 | C133: Servicio De Aseo Y Cafeteria | D133: 245 | E133: 187 | F133: Servicio de instalación mantenimiento, desinfección desincrustación, y aromatización de todos los baños de finedter en sus sedes de la calle 103 y 104 | G133: 2021-12-31 | H133: 17678640
B134: 203050501 | C134: Servicio De Aseo Y Cafeteria | D134: 245 | E134: 187 | F134: Servicio de instalación mantenimiento, desinfección desincrustación, y aromatización de todos los baños de finedter en sus sedes de la calle 103 y 104 | G134: 2021-12-31 | H134: 249048
B135: 203050501 | C135: Servicio De Aseo Y Cafeteria | D135: 245 | E135: 187 | F135: Servicio de aseo y cafeteria | G135: 2021-12-31 | H135: 550310402
B136: 203050502 | C136: Servicios De Vigilancia Y Sistemas De Seguridad | D136: 245 | E136: 184 | F136: Servicio de vigilancia personal | G136: 2021-12-31 | H136: 256549551
B137: 203050502 | C137: Servicios De Vigilancia Y Sistemas De Seguridad | D137: 245 | E137: 941 | F137: Camaras de video vigilancia, dispositivos biometricos de entrada y salida, sensores de incendio | G137: 2021-12-31 | H137: 219124596
B138: 203050502 | C138: Servicios De Vigilancia Y Sistemas De Seguridad | D138: 492 | E138: 183 | F138: Servicio de monitoreo de alarma bucaramanga de acuerdo a las disposiciones de riesgos | G138: 2021-12-31 | H138: 672000
B139: 203050502 | C139: Servicios De Vigilancia Y Sistemas De Seguridad | D139: 493 | E139: 183 | F139: Servicio de monitoreo de alarma barranquilla de acuerdo a las disposiciones de riesgos | G139: 2021-12-31 | H139: 672000
B140: 203050502 | C140: Servicios De Vigilancia Y Sistemas De Seguridad | D140: 504 | E140: 183 | F140: Servicio de monitoreo de alarma san andrés de acuerdo a las disposiciones de riesgos | G140: 2021-12-31 | H140: 368000
B141: 203050502 | C141: Servicios De Vigilancia Y Sistemas De Seguridad | D141: 810 | E141: 183 | F141: Servicio de monitoreo de alarma dirección de operaciones de acuerdo a las disposiciones de riesgos | G141: 2021-12-31 | H141: 160125
B142: 203050502 | C142: Servicios De Vigilancia Y Sistemas De Seguridad | D142: 810 | E142: 183 | F142: Control de acceso a la red nac - soporte y mantenimiento. | G142: 2021-12-31 | H142: 47709030
B143: 203050502 | C143: Servicios De Vigilancia Y Sistemas De Seguridad | D143: 820 | E143: 183 | F143: Servicio de monitoreo de alarma dirección de operaciones de acuerdo a las disposiciones de riesgos | G143: 2021-12-31 | H143: 160125
B144: 203050707 | C144: Utiles De Escritorio Y Papeleria | D144: 245 | E144: 202 | F144: Suministro de elementos de escritorio y papeleria | G144: 2021-12-31 | H144: 110000000
B145: 203050709 | C145: Elementos De Aseo Y Cafeteria | D145: 245 | E145: 44 | F145: Elementos de aseo y cafeteria | G145: 2021-12-31 | H145: 327380032
B146: 203050711 | C146: Otros Gastos De Oficina | D146: 810 | E146: 145 | F146: Certicamara: renovación, adquisición firmas digitales para representantes legales y diferentes actores | G146: 2021-12-31 | H146: 3000000
B147: 203050906 | C147: Servicio De Conectividad | D147: 702 | E147: 181 | F147: Centro alterno de operaciones-cao con la conexión de sebra, deceval, superfinanciera. | G147: 2021-12-31 | H147: 19463194
B148: 203050906 | C148: Servicio De Conectividad | D148: 810 | E148: 181 | F148: Canales de comunicación (internet). Centurylink | G148: 2021-12-31 | H148: 373177717
B149: 203051001 | C149: Publicidad | D149: 461 | E149: 171 | F149: Publicación marketing digital | G149: 2021-12-31 | H149: 10000000
B150: 203051001 | C150: Publicidad | D150: 461 | E150: 171 | F150: Publicación marketing digital | G150: 2021-12-31 | H150: 4000000
B151: 203051002 | C151: Promocion Y Divulgacion | D151: 461 | E151: 163 | F151: Servicio apoyo logisto en la organización de eventos masivos organizados por findeter o en la participación cuando se hace a través de stands o activaciones | G151: 2021-12-31 | H151: 271000000
B152: 203051002 | C152: Promocion Y Divulgacion | D152: 461 | E152: 168 | F152: Contratación de servicios de catering para atender reuniones a domicilio o en los lugares contratados (ej: hoteles a nivel nal., club de banqueros, entre otros) | G152: 2021-12-31 | H152: 2000000
B153: 203051002 | C153: Promocion Y Divulgacion | D153: 461 | E153: 168 | F153: Contratación de servicios de catering para atender reuniones a domicilio o en los lugares contratados (ej: hoteles a nivel nal., club de banqueros, entre otros) | G153: 2021-12-31 | H153: 2709250
B154: 203051002 | C154: Promocion Y Divulgacion | D154: 461 | E154: 168 | F154: Contratación de servicios de catering para atender reuniones a domicilio o en los lugares contratados (ej: hoteles a nivel nal., club de banqueros, entre otros) | G154: 2021-12-31 | H154: 2000000
B155: 203051002 | C155: Promocion Y Divulgacion | D155: 461 | E155: 168 | F155: Contratación de servicios de catering para atender reuniones a domicilio o en los lugares contratados (ej: hoteles a nivel nal., club de banqueros, entre otros) | G155: 2021-12-31 | H155: 6054322
B156: 203051002 | C156: Promocion Y Divulgacion | D156: 461 | E156: 946 | F156: Material informativo digital o impreso (brochures, comercial,tarjetas presentacion) | G156: 2021-12-31 | H156: 10785168
B157: 203051003 | C157: Impresos Y Publicaciones | D157: 460 | E157: 667 | F157: Ediciones revista territorios pensamiento urbano | G157: 2021-12-31 | H157: 39270000
B158: 203070101 | C158: Estructuracion De Proyectos | D158: 355 | E158: 934 | F158: Contratacion consultoria convida | G158: 2021-12-31 | H158: 8157281
B159: 203070101 | C159: Estructuracion De Proyectos | D159: 355 | E159: 934 | F159: Contratacion consultoria convida | G159: 2021-12-31 | H159: 34589333
B160: 203070101 | C160: Estructuracion De Proyectos | D160: 355 | E160: 934 | F160: Contratacion consultoria convida | G160: 2021-12-31 | H160: 44407435
B161: 203070101 | C161: Estructuracion De Proyectos | D161: 355 | E161: 934 | F161: Contratacion consultoria convida | G161: 2021-12-31 | H161: 38938309
B162: 203070101 | C162: Estructuracion De Proyectos | D162: 355 | E162: 934 | F162: Contratacion consultoria convida | G162: 2021-12-31 | H162: 34766348
B163: 204010101 | C163: Compra De Muebles Y Enseres | D163: 245 | E163: 665 | F163: Contratacion suministro mobiliario para findeter. | G163: 2021-12-31 | H163: 20000000
B164: 204010108 | C164: Compra De Software | D164: 810 | E164: 38 | F164: Licenciamiento software ax, crm, servidores y ofimática. Licenciamiento de microsoft. | G164: 2021-12-31 | H164: =1286425869-1 -> 1286425868
B165: 204010108 | C165: Compra De Software | D165: 810 | E165: 38 | F165: Licenciamiento software ax, crm, servidores y ofimática. Licenciamiento de microsoft. | G165: 2021-12-31 | H165: 10453341
B166: 203050310 | C166: Mantenimiento De Software | D166: 810 | E166: 935 | F166: Ecosistema digital | G166: 2021-12-31 | H166: 132000000
B167: 203030105 | C167: Otras Asesorias | D167: 461 | E167: 642 | F167: Estudio de satisfaccion y servicio al cliente externo e interno | G167: 2021-12-31 | H167: =45791869-4146600 -> 41645269
B168: 203030105 | C168: Otras Asesorias | D168: 461 | E168: 642 | F168: Estudio de necesidad de investigación cualitativa- cliente antes desarrollo de focus group/ actividades inteligencia de negocios | G168: 2021-12-31 | H168: =20000000+4146600 -> 24146600
B169: 203050309 | C169: Mantenimiento De Hardware | D169: 810 | E169: 113 | F169: Mantenimiento adquisición de los equipos swicth core | G169: 2021-12-31 | H169: 1280078
B170: 204010106 | C170: Compra De Hardware Y Comunicaciones | D170: 810 | E170: 729 | F170: Adquisición de los equipos swicth core | G170: 2021-12-31 | H170: 308854413
B171: 204010108 | C171: Compra De Software | D171: 810 | E171: 718 | F171: Adquisición de los equipos swicth core-licenciamiento | G171: 2021-12-31 | H171: 34669848
B172: 203010602 | C172: Capacitacion | D172: 260 | E172: 26 | F172: Capacitaciones a nivel general administradas por la jefatura de talento humano | G172: 2022-01-01 | H172: 50500000
B173: 203020201 | C173: Gastos De Viaje A Terceros Nacionales | D173: 330 | E173: 48 | F173: Desplazamiento auditores externos | G173: 2022-01-01 | H173: 25000000
B174: 203020201 | C174: Gastos De Viaje A Terceros Nacionales | D174: 355 | E174: 48 | F174: Contratacion supervision contrato erosion costera | G174: 2022-01-01 | H174: 18000000
B175: 203020201 | C175: Gastos De Viaje A Terceros Nacionales | D175: 500 | E175: 48 | F175: Gastos de viaje contratistas | G175: 2022-01-01 | H175: 280000000
B176: 203030103 | C176: Asesorias Juridicas | D176: 210 | E176: 58 | F176: Prestar el servicio de asesoría y apoyo integral a findeter en todos los aspectos contractuales en las diferentes etapas, así como en la estructuración y revisión de temas relacionados con el gobierno corporativo y el soporte jurídico a los diferentes asuntos relacionados con los seguros requeridos dentro de la actividad de asistencia técnica - carlos ballesteros | G176: 2022-01-01 | H176: 220000000
B177: 203030103 | C177: Asesorias Juridicas | D177: 260 | E177: 59 | F177: Prestar los servicios profesionales para asesorar de manera integral a findeter en materia laboral y de seguridad social conforme los requerimientos legales derivados de la administración del personal. | G177: 2022-01-01 | H177: 157655542
B178: 203030104 | C178: Asesorias Financieras | D178: 315 | E178: 731 | F178: Asesorías financieras requeridas | G178: 2022-01-01 | H178: 50000000
B179: 203030104 | C179: Asesorias Financieras | D179: 315 | E179: 731 | F179: Segunda opinión | G179: 2022-01-01 | H179: 58000000
B180: 203030105 | C180: Otras Asesorias | D180: 330 | E180: 771 | F180: Auditoria contrato de préstamo bid 3596/oc-co. Contrato 0001 de 2018 | G180: 2022-01-01 | H180: 200000000
B181: 203030105 | C181: Otras Asesorias | D181: 330 | E181: 771 | F181: Auditoría cooperación kfw tramo i y ii | G181: 2022-01-01 | H181: 40000000
B182: 203030105 | C182: Otras Asesorias | D182: 460 | E182: 945 | F182: Servicio de locución profesional | G182: 2022-01-01 | H182: 40000000
B183: 203030105 | C183: Otras Asesorias | D183: 500 | E183: 642 | F183: Contratos por prestación de servicios para supervisión de programas de la vt y profesionales especializados para el diseño y consultoría de obras civiles | G183: 2022-01-01 | H183: 741520000
B184: 203030105 | C184: Otras Asesorias | D184: 510 | E184: 642 | F184: Contratos por prestación de servicios para supervisión de programas de la vt y profesionales especializados para el diseño y consultoría de obras civiles | G184: 2022-01-01 | H184: =15300000-3100000 -> 12200000
B185: 203030105 | C185: Otras Asesorias | D185: 605 | E185: 642 | F185: Consultoría para analizar y fortalecer el modelo de prima variable estratégica. | G185: 2022-01-01 | H185: 11007500
B186: 203030105 | C186: Otras Asesorias | D186: 640 | E186: 642 | F186: Consultoría para dirección de estudios económicos: medición de cumplimiento de ods de findeter | G186: 2022-01-01 | H186: 80000
B187: 203030105 | C187: Otras Asesorias | D187: 810 | E187: 711 | F187: Tableros de inteligencia de negocios - bi (qlik) | G187: 2022-01-01 | H187: 259261407
B188: 203030105 | C188: Otras Asesorias | D188: 810 | E188: 935 | F188: Operación gobierno de datos- contratos de prestación de servicios- calidad | G188: 2022-01-01 | H188: 114000000
B189: 203030105 | C189: Otras Asesorias | D189: 810 | E189: 935 | F189: Rpa (automatización robótica de procesos) | G189: 2022-01-01 | H189: 182110
B190: 203030105 | C190: Otras Asesorias | D190: 860 | E190: 642 | F190: Asesoría niif 9 | G190: 2022-01-01 | H190: 3570000
B191: 203030105 | C191: Otras Asesorias | D191: 870 | E191: 642 | F191: Servicio crédito directo fase 2 | G191: 2022-01-01 | H191: 190000000
B192: 203050101 | C192: Equipo De Computo, Comunicacion Y Multifuncionales | D192: 510 | E192: 912 | F192: Servicio de interkont ( mi obra) | G192: 2022-01-01 | H192: 26000000
B193: 203050101 | C193: Equipo De Computo, Comunicacion Y Multifuncionales | D193: 810 | E193: 753 | F193: Canales para master trader (cao) aplicaciones bvc | G193: 2022-01-01 | H193: 2292769
B194: 203050101 | C194: Equipo De Computo, Comunicacion Y Multifuncionales | D194: 810 | E194: 912 | F194: Gestión de obras y casa digna vida digna cobra | G194: 2022-01-01 | H194: 625000000
B195: 203050101 | C195: Equipo De Computo, Comunicacion Y Multifuncionales | D195: 850 | E195: 753 | F195: Mensajes de texto para cobranza de cartera crédito directo y exempleados software como servicio | G195: 2022-01-01 | H195: 1000000
B196: 203050101 | C196: Equipo De Computo, Comunicacion Y Multifuncionales | D196: 860 | E196: 943 | F196: Facturacion electronica findeter | G196: 2022-01-01 | H196: 11253062
B197: 203050102 | C197: Locales, Oficinas, Parqueaderos Y Otros | D197: 245 | E197: 6 | F197: Arrendamiento calle av 24 cao bogota | G197: 2022-01-01 | H197: 2299600
B198: 203050102 | C198: Locales, Oficinas, Parqueaderos Y Otros | D198: 492 | E198: 6 | F198: Arrendamiento terrazas bucaramanga | G198: 2022-01-01 | H198: 2452656
B199: 203050102 | C199: Locales, Oficinas, Parqueaderos Y Otros | D199: 493 | E199: 6 | F199: Arrendamiento cartagena | G199: 2022-01-01 | H199: 42830974
B200: 203050102 | C200: Locales, Oficinas, Parqueaderos Y Otros | D200: 500 | E200: 6 | F200: Arrendamiento providencia | G200: 2022-01-01 | H200: 14800000
B201: 203050102 | C201: Locales, Oficinas, Parqueaderos Y Otros | D201: 500 | E201: 6 | F201: Arrendamiento apartamento san andres | G201: 2022-01-01 | H201: 76687000
B202: 203050305 | C202: Mantenimiento De Vehiculos | D202: 245 | E202: 746 | F202: Supermotos - mantenimiento de motocicleta | G202: 2022-01-01 | H202: 602500
B203: 203050305 | C203: Mantenimiento De Vehiculos | D203: 245 | E203: 746 | F203: Distoyota - mantenimiento de vehiculo toyota presidencia | G203: 2022-01-01 | H203: 2205000
B204: 203050305 | C204: Mantenimiento De Vehiculos | D204: 245 | E204: 746 | F204: Sanautos - mantenimiento de vehiculo renault secretaria general | G204: 2022-01-01 | H204: 3643500
B205: 203050307 | C205: Mantenimiento De Edificios Y Locales | D205: 245 | E205: 105 | F205: Suministro de acpm para la planta de energia | G205: 2022-01-01 | H205: 1320189
B206: 203050307 | C206: Mantenimiento De Edificios Y Locales | D206: 245 | E206: 734 | F206: Mantenimiento y certificacion ascensor sede central | G206: 2022-01-01 | H206: 333200
B207: 203050307 | C207: Mantenimiento De Edificios Y Locales | D207: 245 | E207: 734 | F207: Mantenimiento planta electrica cummins | G207: 2022-01-01 | H207: 2997401
B208: 203050307 | C208: Mantenimiento De Edificios Y Locales | D208: 481 | E208: 111 | F208: Mantenimiento equipos aire acondicionado cali | G208: 2022-01-01 | H208: 2909005
B209: 203050309 | C209: Mantenimiento De Hardware | D209: 810 | E209: 195 | F209: Mantenimiento de redes de comunicación interna, cableado estructural, prestar el servicio de mantenimiento preventivo, correctivo y de mejora, adecuación de las redes de datos y eléctrica de sus oficinas. | G209: 2022-01-01 | H209: 14887609
B210: 203050310 | C210: Mantenimiento De Software | D210: 810 | E210: 117 | F210: Alfyn - soporte y mantenimiento portafolio de inversiones de renta fija y cuentas bancarias | G210: 2022-01-01 | H210: 10408413
B211: 203050310 | C211: Mantenimiento De Software | D211: 810 | E211: 126 | F211: Erp corporativo alfapeople (dynamics ax). Soporte y mantenimiento | G211: 2022-01-01 | H211: 641531895
... 269 more rows

Sheet PETH
C4: PLAN ESTRATÉGICO DE TALENTO HUMANO FINDETER 2022
B13: Conforme lo establecido en la "Guía de gestión estratégica del talento humano GETH" del Departamento Administrativo de la Función Pública, el diseño de la Planeación Estratégica del Talento Humano contempla entre otros, el Plan Anual de Vacantes, El Plan de Previsión de Recursos Humanos, El Plan Institucional de Capacitación, el Plan de Bienestar e Incentivos, el Plan de Seguridad y Salud en el Trabajo. A continuación haga clic sobre el Plan que desee consultar en detalle:

Sheet Plan de Previsión de RRHH
H4: PLAN DE PREVISION DE RECURSOS HUMANOS Y PLAN DE VACANTES FINDETER 2022

Sheet PSST
E4: PLAN DE TRABAJO ANUAL EN SEGURIDAD Y SALUD EN EL TRABAJO - PSST FINDETER 2022
B10: Dependencia | C10: Nombre de la tarea | D10: Descripción | E10: Política de Gestión y Desempeño | F10: Responsable de tarea | G10: Fecha Inicio | H10: Fecha Fin | I10: Fuente de Financiación
B11: Jefatura de Talento Humano | C11: Jornada de afiliación para nueva cotratación 2022 | D11: afiliación a EPS, caja de Compensación, Seguros de Vida, ARL, Medicina Prepagada | E11: Talento Humano | F11: Profesional SST | G11: 44564 | H11: 44592 | I11: Findeter
C12: Actualización de matriz de identificacion de peligros | D12: Implementación, mantenimiento y mejoramiento del Sistema de Gestión en Seguridad y Salud en el Trabajo . | F12: Profesional SST | G12: 44621 | H12: 44651 | I12: Findeter
C13: Politica de SG-SST | D13: Divulgar los objetivos de Seguridad y Salud en el Trabajo a todos los colaboradores - Inducción de bienvenida Talento Humano. | F13: Profesional SST | G13: 44593 | H13: 44904 | I13: Findeter
C14: Objetivos de SG-SST | F14: Profesional SST | G14: 44593 | H14: 44904 | I14: Findeter
C15: Ejecutar entrenaimiento de trabajo en alturas para el personal del area tecnica | D15: Prevencion de accidentes e incidentes laborales | F15: Profesional SST | G15: 44593 | H15: 44681 | I15: Findeter
C16: Establecer criterios en sst para evaluacion y selección de proveedores | D16: Implementación, mantenimiento y mejoramiento del Sistema de Gestión en Seguridad y Salud en el Trabajo . | F16: Profesional SST | G16: 44652 | H16: 44712 | I16: Findeter
C17: Realizar Plan de mejora y Plan Anual 2023 | F17: Profesional SST | G17: 44896 | H17: 44896 | I17: Findeter
C18: Realizar indicadores de ausentismo | D18: Prevencion de enfermedades ocupacionales | F18: Profesional SST | G18: 44594 | H18: 44926 | I18: Findeter
C19: Implementar indicadores de incidencia y prevalencia con base en el ausentismo | F19: Profesional SST | G19: 44652 | H19: 44681 | I19: Findeter
C20: Realizar Chequeos ejecutivos a Directivos | F20: Profesional SST | G20: 44621 | H20: 44651 | I20: Findeter
C21: Ejecutar plan resultante de programas de vigilancia epidemiologicas PVE | D21: Prevencion de riesgo biomecanico - Miercoles FIT | F21: Profesional SST | G21: 44593 | H21: 44926 | I21: Findeter
C22: Realizar plan de acción Riesgo Psicosocial | D22: Prevención de enfermedades generales y ocupacionales derivadas de condiciones intralaborales, extralaborales e individuales | F22: Profesional SST | G22: 44593 | H22: 44926 | I22: Findeter
C23: Reforzar e incentivar uso de Sala amigas de la Familia Lactante | D23: Promoción de hábitos de vida saludables y prevención de enfermedades generales | F23: Profesional SST | G23: 44593 | H23: 44743 | I23: Findeter
C24: Reforzar uso aplicativo Citas Médicas | F24: Profesional SST | G24: 44593 | H24: 44743 | I24: Findeter
C25: Realizar seguimiento a Programa de Riesgo Cardiovascular | F25: Profesional SST | G25: 44593 | H25: 44926 | I25: Findeter
C26: Ejecutar la Semana de la Salud | F26: Profesional SST | G26: 44824 | H26: 44828 | I26: Findeter
C27: Realizar inspecciones de SST | D27: Prevención de accidentes e incidentes laborales | F27: Profesional SST | G27: 44743 | H27: 44926 | I27: Findeter
C28: Reforzar uso aplicativo Canal Seguro | F28: Profesional SST | G28: 44593 | H28: 44743 | I28: Findeter
C29: Realizar investigaciones de accidentes de trabajo | F29: Profesional SST | G29: 44682 | H29: 44712 | I29: Findeter
C30: Realizar seguimiento a hallazgos encontrados en estudios de higiene | F30: Profesional SST | G30: 44713 | H30: 44742 | I30: Findeter
C31: Actualizar Plan de Emergencias-divulgar a los brigadistas | D31: Preparación y respuesta ante emergencias en el entorno laboral | F31: Profesional SST | G31: 44713 | H31: 44742 | I31: Findeter
C32: Realizar simulacro distrital SST | F32: Profesional SST | G32: 44835 | H32: 44854 | I32: Findeter
C33: Realizar simulacro ambiental | F33: Profesional SST | G33: 44682 | H33: 44712 | I33: Findeter
C34: Formación Integral a la Brigada de Emergencia - capacitaciones según el reglamento. | D34: Formación en temas de seguridad y salud en el trabajo en aras de prevenir accidentes y enfermedades laborales | F34: Profesional SST | G34: 44617 | H34: 44926 | I34: Findeter
C35: Formación a COPASST- capacitaciones pertinentes según el reglamento | F35: Profesional SST | G35: 44635 | H35: 44926 | I35: Findeter
C36: Formación a Comité de Convivencia Laboral | F36: Profesional SST | G36: 29/02/2022 | H36: 44926 | I36: Findeter
C37: Divulgación Plan de emergencias a todo el personal | F37: Profesional SST | G37: 44732 | H37: 44919 | I37: Findeter
C38: Capacitación en Higiene Postural a todo el personal | F38: Profesional SST | G38: 44654 | H38: 44680 | I38: Findeter
C39: Capacitación en Riesgo Público conductores | F39: Profesional SST | G39: 44795 | H39: 44799 | I39: Findeter
C40: Uso y mantenimiento adecuado de EPP - personal Area Técnica | F40: Profesional SST | G40: 44682 | H40: 44712 | I40: Findeter
C41: Capacitación en Riesgo Público personal del Area Técnica | F41: Profesional SST | G41: 44752 | H41: 44757 | I41: Findeter
C42: Capacitación manejo seguro de cargas - Contratistas | F42: Profesional SST | G42: 44851 | H42: 44855 | I42: Findeter
C43: Uso y mantenimiento adecuado de EPP - Contratistas | F43: Profesional SST | G43: 44872 | H43: 44876 | I43: Findeter
C44: Capacitación en Orden y Limpieza a todo el personal | F44: Profesional SST | G44: 44713 | H44: 44742 | I44: Findeter
C45: Curso Virtual SG - SST | F45: Profesional SST | G45: 44913 | H45: 44917 | I45: Findeter

Sheet Plan de Incentivos
D4: PLAN DE INCENTIVOS INSTITUCIONALES FINDETER 2022

Sheet PIC
D3: PLAN INSTITUCIONAL DE CAPACITACIÓN - PIC FINDETER 2022
B9: Dependencia | C9: Política de Gestión y Desempeño | D9: Nombre de la Actividad | E9: Descripción de la Actividad | F9: Responsables (Responsable de la Tarea) | G9: Fecha de Inicio | H9: Fecha de Fin | I9: Fuente de Financiación
B12: Jefatura de Talento Humano | C12: Talento Humano | D12: Inducción y actualización General de Findeter | E12: Integrar a los nuevos trabajadores a la cultura organizacional, enfoque de la misión, visión y objetivos estratégicos, lineamientos como empresa familiarmente responsable, creando sentido de pertenencia hacia la organización. | F12: Jefatura de Talento Humano | G12: 20/01/2022 | H12: 31/012022 | I12: Findeter
B13: Jefatura de Talento Humano | C13: Talento Humano | D13: Capacitación de Servicio al Cliente para toda la Entidad SAC | E13: Integrar al trabajador a la cultura organizacional en virtud de los cambios producidos en cualquiera de los temas que se definan, fortaleciendo su sentido de pertenencia e identidad frente a la Findeter. | F13: Jefatura de Talento Humano | G13: 44711 | H13: =G13 -> 44711 | I13: Findeter
B14: Jefatura de Talento Humano | C14: Talento Humano | D14: Capacitaciones en temas asociados a contratación y demás funciones de la Dirección | E14: Realizar capacitaciones que se enfocan en adquirir, reforzar, o completar los conocimientos o habilidades requeridas para optimizar el desempeño laboral para el logro de los objetivos estratégicos | F14: Jefatura de Talento Humano | G14: 44804 | H14: =G14 -> 44804 | I14: Findeter
B15: Jefatura de Talento Humano | C15: Talento Humano | D15: Capacitación en el idioma inglés para los trabajadores (beneficiarios convención colectiva y directivos) | F15: Jefatura de Talento Humano | G15: 44865 | H15: =G15 -> 44865 | I15: Findeter
B16: Jefatura de Talento Humano | C16: Talento Humano | D16: Se requiere capacitación en técnicas de redacción y ortografía que permitan construir habilidades en la materia que mejoren lo documentos presentados en las diferentes áreas de al secretaría, así como las comunicaciones escritas. | E16: Actualizar, ampliar o mejorar el nivel de conocimientos y experiencias de los trabajadores, a fin de potenciar su desempeño de funciones técnicas, profesionales, directivas o de gestión. | F16: Jefatura de Talento Humano | G16: 44591 | H16: =G16 -> 44591 | I16: Findeter
B17: Jefatura de Talento Humano | C17: Talento Humano | D17: Actualización en Derecho Disciplinario | F17: Jefatura de Talento Humano | G17: 44591 | H17: 44591 | I17: Findeter
B18: Jefatura de Talento Humano | C18: Talento Humano | D18: Capacitación fuerza Comercial Findeter Suma | F18: Jefatura de Talento Humano | G18: 44591 | H18: 44591 | I18: Findeter
B19: Jefatura de Talento Humano | C19: Talento Humano | D19: Capacitación relacionada con cartera o administración del SARC | F19: Jefatura de Talento Humano | G19: 44591 | H19: 44591 | I19: Findeter
B20: Jefatura de Talento Humano | C20: Talento Humano | D20: Foundations in Responsible Investmets | F20: Jefatura de Talento Humano | G20: 44620 | H20: 44620 | I20: Findeter
B21: Jefatura de Talento Humano | C21: Talento Humano | D21: Diplomado Metodología BIM (Building Information Modeling) | F21: Jefatura de Talento Humano | G21: 44620 | H21: 44620 | I21: Findeter
B22: Jefatura de Talento Humano | C22: Talento Humano | D22: Capacitación en Design Thinking | F22: Jefatura de Talento Humano | G22: 44620 | H22: 44620 | I22: Findeter
B23: Jefatura de Talento Humano | C23: Talento Humano | D23: Diplomado en Fintech | F23: Jefatura de Talento Humano | G23: 44620 | H23: 44620 | I23: Findeter
B24: Jefatura de Talento Humano | C24: Talento Humano | D24: Curso: catastro multipropósito y planificación territorial en Colombia | F24: Jefatura de Talento Humano | G24: 44651 | H24: 44651 | I24: Findeter
B25: Jefatura de Talento Humano | C25: Talento Humano | D25: Metodología BIM - proyectos de infraestructura | F25: Jefatura de Talento Humano | G25: 44651 | H25: 44651 | I25: Findeter
B26: Jefatura de Talento Humano | C26: Talento Humano | D26: DIPLOMADO MERCADO DE CAPITALES, UNIVERSIDAD DEL ROSARIO | F26: Jefatura de Talento Humano | G26: 44651 | H26: 44651 | I26: Findeter
B27: Jefatura de Talento Humano | C27: Talento Humano | D27: Management 3.0 | F27: Jefatura de Talento Humano | G27: 44651 | H27: 44651 | I27: Findeter
B28: Jefatura de Talento Humano | C28: Talento Humano | D28: Coaching, liderazgo, trabajo en equipo e innovacion y habilidades blandas | F28: Jefatura de Talento Humano | G28: 44681 | H28: 44681 | I28: Findeter
B29: Jefatura de Talento Humano | C29: Talento Humano | D29: Curso aplicaciones financieras en Python | F29: Jefatura de Talento Humano | G29: 44681 | H29: 44681 | I29: Findeter
B30: Jefatura de Talento Humano | C30: Talento Humano | D30: Participacion congreso Marketing | F30: Jefatura de Talento Humano | G30: 44681 | H30: 44681 | I30: Findeter
B31: Jefatura de Talento Humano | C31: Talento Humano | D31: Project - Manejo básico | F31: Jefatura de Talento Humano | G31: 44681 | H31: 44681 | I31: Findeter
B32: Jefatura de Talento Humano | C32: Talento Humano | D32: MAESTRIA EN ADMINISTRACION MBA | F32: Jefatura de Talento Humano | G32: 44681 | H32: 44681 | I32: Findeter
B33: Jefatura de Talento Humano | C33: Talento Humano | D33: Actualización en normatividad sobre seguridad social asisten 2 trabajadores | F33: Jefatura de Talento Humano | G33: 44711 | H33: 44711 | I33: Findeter
B34: Jefatura de Talento Humano | C34: Talento Humano | D34: Programa de Ciberseguridad basado en Marco NIST CSF v1.1 + Examen Certificación | F34: Jefatura de Talento Humano | G34: 44711 | H34: 44711 | I34: Findeter
B35: Jefatura de Talento Humano | C35: Talento Humano | D35: Congreso Panamericano de Lavado de Activos y Financiación del Terrorismo de la Asobancaria. | F35: Jefatura de Talento Humano | G35: 44742 | H35: 44742 | I35: Findeter
B36: Jefatura de Talento Humano | C36: Talento Humano | D36: Simposio Mercado de Capitales | F36: Jefatura de Talento Humano | G36: 44742 | H36: 44742 | I36: Findeter
B37: Jefatura de Talento Humano | C37: Talento Humano | D37: Project Finance | F37: Jefatura de Talento Humano | G37: 44742 | H37: 44742 | I37: Findeter
B38: Jefatura de Talento Humano | C38: Talento Humano | D38: Asistencia a eventos | F38: Jefatura de Talento Humano | G38: 44742 | H38: 44742 | I38: Findeter
B39: Jefatura de Talento Humano | C39: Talento Humano | D39: Plataforma Analítica de KNIME | F39: Jefatura de Talento Humano | G39: 44742 | H39: 44742 | I39: Findeter
B40: Jefatura de Talento Humano | C40: Talento Humano | D40: Curso actualización metodologías SARLAFT. | F40: Jefatura de Talento Humano | G40: 44773 | H40: 44773 | I40: Findeter
B41: Jefatura de Talento Humano | C41: Talento Humano | D41: Congreso de Tesorería | F41: Jefatura de Talento Humano | G41: 44773 | H41: 44773 | I41: Findeter
B42: Jefatura de Talento Humano | C42: Talento Humano | D42: Capacitación fuerza Comercial Findeter Suma | F42: Jefatura de Talento Humano | G42: 44591 | H42: 44591 | I42: Findeter
B43: Jefatura de Talento Humano | C43: Talento Humano | D43: Programa Ordenamiento territorial rural y vínculos urbano - rurales en Colombia y Centro América: retos, instrumentos e innovaciones | F43: Jefatura de Talento Humano | G43: 44773 | H43: 44773 | I43: Findeter
B44: Jefatura de Talento Humano | C44: Talento Humano | D44: Curso Regimen Tributario Nacional y Territorial | F44: Jefatura de Talento Humano | G44: 44773 | H44: 44773 | I44: Findeter
B45: Jefatura de Talento Humano | C45: Talento Humano | D45: Taller Internacional Alide | F45: Jefatura de Talento Humano | G45: 44773 | H45: 44773 | I45: Findeter
B46: Jefatura de Talento Humano | C46: Talento Humano | D46: Diplomado Herramientas financieras para la toma de decisiones - Javeriana | F46: Jefatura de Talento Humano | G46: 44773 | H46: 44773 | I46: Findeter
B47: Jefatura de Talento Humano | C47: Talento Humano | D47: Diplomado en normatividad tributaria para 2 trabajadores | F47: Jefatura de Talento Humano | G47: 44804 | H47: 44804 | I47: Findeter
B48: Jefatura de Talento Humano | C48: Talento Humano | D48: Charla técnica de comunicaciones en grupos abiertos y cerrados | F48: Jefatura de Talento Humano | G48: 44804 | H48: 44804 | I48: Findeter
B49: Jefatura de Talento Humano | C49: Talento Humano | D49: - Diseño y construcción Infraestructura educativa e infraestructura hospitalaria | F49: Jefatura de Talento Humano | G49: 44804 | H49: 44804 | I49: Findeter
B50: Jefatura de Talento Humano | C50: Talento Humano | D50: Actualización de la Normativa sobre licencias urbanísticas | F50: Jefatura de Talento Humano | G50: 44804 | H50: 44804 | I50: Findeter
B51: Jefatura de Talento Humano | C51: Talento Humano | D51: Diplomado de Norma internacional -Actualización | F51: Jefatura de Talento Humano | G51: 44804 | H51: 44804 | I51: Findeter
B52: Jefatura de Talento Humano | C52: Talento Humano | D52: Diplomado en BPM para la transformación digital de procesos | F52: Jefatura de Talento Humano | G52: 44804 | H52: 44804 | I52: Findeter
B53: Jefatura de Talento Humano | C53: Talento Humano | D53: Sistema general de regalías - EAFIT | F53: Jefatura de Talento Humano | G53: 44804 | H53: 44804 | I53: Findeter
B54: Jefatura de Talento Humano | C54: Talento Humano | D54: Excel, Access y Power BI para el Análisis de Información y la Generación de Reportes Efectivos - Javeriana | F54: Jefatura de Talento Humano | G54: 44804 | H54: 44804 | I54: Findeter
B55: Jefatura de Talento Humano | C55: Talento Humano | D55: Capacitacion miembros de Junta Directiva | F55: Jefatura de Talento Humano | G55: 44834 | H55: 44834 | I55: Findeter
B56: Jefatura de Talento Humano | C56: Talento Humano | D56: Diplomado en Ventas, herramientas comerciales y de ventas/ servicio al cliente: /Eafit /Cesa o similar (para 6 personas del área intermediación) | F56: Jefatura de Talento Humano | G56: 44834 | H56: 44834 | I56: Findeter
B57: Jefatura de Talento Humano | C57: Talento Humano | D57: Servicio al cliente | F57: Jefatura de Talento Humano | G57: 44834 | H57: 44834 | I57: Findeter
B58: Jefatura de Talento Humano | C58: Talento Humano | D58: Generalidades del Sistema de Regalías | F58: Jefatura de Talento Humano | G58: 44834 | H58: 44834 | I58: Findeter
B59: Jefatura de Talento Humano | C59: Talento Humano | D59: Gestión de Riesgos de Proyectos | F59: Jefatura de Talento Humano | G59: 44834 | H59: 44834 | I59: Findeter
B60: Jefatura de Talento Humano | C60: Talento Humano | D60: Capacitación continuidad del negocio grupos críticos | F60: Jefatura de Talento Humano | G60: 44834 | H60: 44834 | I60: Findeter
B61: Jefatura de Talento Humano | C61: Talento Humano | D61: Diplomado en riesgos de proyectos | F61: Jefatura de Talento Humano | G61: 44834 | H61: 44834 | I61: Findeter
B62: Jefatura de Talento Humano | C62: Talento Humano | D62: Temas relacionados con efr | F62: Jefatura de Talento Humano | G62: 44865 | H62: 44865 | I62: Findeter
B63: Jefatura de Talento Humano | C63: Talento Humano | D63: Gestión comercial búsqueda de nuevos negocios en el sector publico | F63: Jefatura de Talento Humano | G63: 44865 | H63: 44865 | I63: Findeter
B64: Jefatura de Talento Humano | C64: Talento Humano | D64: NSR 10 - Capítulo K. Accesibilidad y rutas de evacuación | F64: Jefatura de Talento Humano | G64: 44865 | H64: 44865 | I64: Findeter
B65: Jefatura de Talento Humano | C65: Talento Humano | D65: Seminario Asobancaria - Mercado Capitales | F65: Jefatura de Talento Humano | G65: 44865 | H65: 44865 | I65: Findeter
B66: Jefatura de Talento Humano | C66: Talento Humano | D66: Congreso Asobancaria LAFT | F66: Jefatura de Talento Humano | G66: 44865 | H66: 44865 | I66: Findeter
B67: Jefatura de Talento Humano | C67: Talento Humano | D67: Congreso de Prevención del Fraude y Ciberseguridad - Asobancaria | F67: Jefatura de Talento Humano | G67: 44865 | H67: 44865 | I67: Findeter
B68: Jefatura de Talento Humano | C68: Talento Humano | D68: CONGRESO DE TESORERIA, ASOBANCARIA | F68: Jefatura de Talento Humano | G68: 44865 | H68: 44865 | I68: Findeter
B69: Jefatura de Talento Humano | C69: Talento Humano | D69: Seminario en Matematica financiera con enfoque en Norma Internacional | F69: Jefatura de Talento Humano | G69: 44865 | H69: 44865 | I69: Findeter
B70: Jefatura de Talento Humano | C70: Talento Humano | D70: Diplomado en riesgos financieros - Sergio Arboleda | F70: Jefatura de Talento Humano | G70: 44865 | H70: 44865 | I70: Findeter
B71: Jefatura de Talento Humano | C71: Talento Humano | D71: Contenidos para la plataforma e-learning | F71: Jefatura de Talento Humano | G71: 44895 | H71: 44895 | I71: Findeter
B72: Jefatura de Talento Humano | C72: Talento Humano | D72: Congreso Asobancaria | F72: Jefatura de Talento Humano | G72: 44895 | H72: 44895 | I72: Findeter
B73: Jefatura de Talento Humano | C73: Talento Humano | D73: Congreso ALIDE | F73: Jefatura de Talento Humano | G73: 44895 | H73: 44895 | I73: Findeter
B74: Jefatura de Talento Humano | C74: Talento Humano | D74: Diplomado en Riesgo de fraude | F74: Jefatura de Talento Humano | G74: 44895 | H74: 44895 | I74: Findeter
B75: Jefatura de Talento Humano | C75: Talento Humano | D75: Certificaciones Ante la AMV | F75: Jefatura de Talento Humano | G75: 44926 | H75: 44926 | I75: Findeter
B76: Jefatura de Talento Humano | C76: Talento Humano | D76: Curso de actualización en nueva normatividad en SGSST | E76: Capacitar a los trabajadores para brindar o fortalecer el conocimiento integral de la Entidad, con el propósito de lograr su alineación con la estrategia corporativa y la comprension en las directrices de la Financiera. | F76: Jefatura de Talento Humano | G76: 44804 | H76: =G76 -> 44804 | I76: Findeter
B77: Jefatura de Talento Humano | C77: Talento Humano | D77: Capacitación Códigos Etica e Integridad y Gobierno Corporativo | F77: Jefatura de Talento Humano | G77: 44742 | H77: =G77 -> 44742 | I77: Findeter
B78: Jefatura de Talento Humano | C78: Talento Humano | D78: Formación Integral a la Brigada de Emergencia - capacitaciones según el reglamento. | E78: Formación en temas de seguridad y salud en el trabajo en aras de prevenir accidentes y enfermedades laborales | F78: Jefatura de Talento Humano | G78: 44617 | H78: 44926 | I78: Findeter
B79: Jefatura de Talento Humano | C79: Talento Humano | D79: Formación a COPASST- capacitaciones pertinentes según el reglamento | F79: Jefatura de Talento Humano | G79: 44635 | H79: 44926 | I79: Findeter
B80: Jefatura de Talento Humano | C80: Talento Humano | D80: Formación a Comité de Convivencia Laboral | F80: Jefatura de Talento Humano | G80: 29/02/2022 | H80: 44926 | I80: Findeter
B81: Jefatura de Talento Humano | C81: Talento Humano | D81: Divulgación Plan de emergencias a todo el personal | F81: Jefatura de Talento Humano | G81: 44732 | H81: 44919 | I81: Findeter
B82: Jefatura de Talento Humano | C82: Talento Humano | D82: Capacitación en Higiene Postural a todo el personal | F82: Jefatura de Talento Humano | G82: 44654 | H82: 44680 | I82: Findeter
B83: Jefatura de Talento Humano | C83: Talento Humano | D83: Capacitación en Riesgo Público conductores | F83: Jefatura de Talento Humano | G83: 44795 | H83: 44799 | I83: Findeter
B84: Jefatura de Talento Humano | C84: Talento Humano | D84: Uso y mantenimiento adecuado de EPP - personal Area Técnica | F84: Jefatura de Talento Humano | G84: 44682 | H84: 44712 | I84: Findeter
B85: Jefatura de Talento Humano | C85: Talento Humano | D85: Capacitación en Riesgo Público personal del Area Técnica | F85: Jefatura de Talento Humano | G85: 44752 | H85: 44757 | I85: Findeter
B86: Jefatura de Talento Humano | C86: Talento Humano | D86: Capacitación manejo seguro de cargas - Contratistas | F86: Jefatura de Talento Humano | G86: 44851 | H86: 44855 | I86: Findeter
B87: Jefatura de Talento Humano | C87: Talento Humano | D87: Uso y mantenimiento adecuado de EPP - Contratistas | F87: Jefatura de Talento Humano | G87: 44872 | H87: 44876 | I87: Findeter
B88: Jefatura de Talento Humano | C88: Talento Humano | D88: Capacitación en Orden y Limpieza a todo el personal | F88: Jefatura de Talento Humano | G88: 44713 | H88: 44742 | I88: Findeter
B89: Jefatura de Talento Humano | C89: Talento Humano | D89: Curso Virtual SG - SST | F89: Jefatura de Talento Humano | G89: 44913 | H89: 44917 | I89: Findeter

Sheet Plan MIPG
O2: v
F4: PLAN DEL MODELO INTEGRADO DE PLANEACIÓN Y GESTION - MIPG FINDETER 2022
C10: Perspectiva | D10: Subtema (Dimensión MIPG) | E10: Política | F10: Objetivo | G10: Iniciativa | H10: Actividad (Nombre de la Tarea) | I10: Descripción de la Tarea y Entregable | J10: Area Responsable en Findeter | K10: Persona Responsable de documentar acciones | L10: Fecha Inicial | M10: Fecha Final | N10: Fuente de Financiación
C11: Gestión de capacidades institucionales | D11: Talento Humano | E11: Integridad | F11: Fortalecer las capacidades institucionales de las entidades del sector hacienda | G11: Fortalecer la implementación de la política de integridad en las Entidades del Sector | H11: Realizar el curso de CODIGO DE ÉTICA Y CONFLICTO DE INTERÉS, de manera Virtual en la plataforma FINDETER APRENDE para los colaboradores que ingresan a la Entidad. | I11: Difundir el curso de Etica e Integridad y conflicto de interés virtual en la paltaforma FINDETER APRENDE para todos los colaboradores que ingresan a la Entidad, como parte de la actividad de inducción y la interiorización de GobIerno corporativo de la Entidad. | J11: Jefatura de Talento Humano | K11: Ángela Shirley Téllez y Ricardo Soto Baron | L11: 44563 | M11: 44926 | N11: Findeter
C12: Gestión de capacidades institucionales | D12: Talento Humano | E12: Integridad | F12: Fortalecer las capacidades institucionales de las entidades del sector hacienda | G12: Fortalecer la implementación de la política de integridad en las Entidades del Sector | H12: Realizar programas de capacitación que permitan el fortalecimiento de conceptos en la gestión de conflictos de intereses dentro del marco de la Política de Talento Humano | I12: Convocar trimestralmente a capacitaciones en temas de Conflicto de Interés, acciones que contribuyen a la actualizacion de la gestión de los conflictos de interés en la Entidad" | J12: Jefatura de Talento Humano | K12: Ángela Shirley Téllez y Ricardo Soto Baron | L12: 44563 | M12: 44926 | N12: Findeter
C13: Gestión de capacidades institucionales | D13: FINDETER > PAA 2022 > Ruta de Creación de Valor | E13: Talento Humano | F13: GCI1. Fortalecer las capacidades del Talento Humano y la Innovación en las entidades del Sector Hacienda | G13: SH.Ini.2019.2022.GCI1.001 Fortalecer la implementación de la política del Talento Humano en las Entidades del Sector Hacienda SH.Ini.2019.2022.GCI1.002 Fortalecer la implementación de la política de integridad en las Entidades del Sector | H13: Participar en las capacitaciones sectoriales de la dimensión de Talento Humano | I13: Participar en las capacitaciones sectoriales de la dimensión de Talento Humano de conformidad con las posibilidades y apoyo de las demás Entidades del Sector según el caso. | J13: Jefatura de Talento Humano | K13: Ángela Shirley Téllez y Ricardo Soto Baron | L13: 44563 | M13: 44926 | N13: Findeter
C14: Gestión de capacidades institucionales | D14: FINDETER > PAA 2022> Dimensión de Talento Humano | E14: Talento Humano | F14: GCI1. Fortalecer las capacidades del Talento Humano y la Innovación en las entidades del Sector Hacienda | G14: SH.Ini.2019.2022. GCI1.001 Fortalecer la implementación de la política del Talento Humano en las Entidades del Sector Hacienda SH.Ini.2019.2022.GCI1.002 Fortalecer la implementación de la política de integridad en las Entidades del Sector | H14: Participar en las mesas sectoriales de la dimensión de Talento Humano. | I14: Participar en las reuniones programadas por el líder sectorial de la política de Talento Humano e Integridad del MHCP y entregar la información requerida para el fortalecimiento y documentación de estas políticas. | J14: Jefatura de Talento Humano | K14: Ángela Shirley Téllez y Ricardo Soto Baron | L14: 44563 | M14: 44926 | N14: Findeter
C15: Gestión de capacidades institucionales | D15: Talento Humano | E15: Talento Humano | F15: Fortalecer las capacidades institucionales de las entidades del sector hacienda | G15: Contribuir al mejoramiento de las condiciones del talento humano bajo los principios de integridad, transparencia y confianza | H15: Realizar las acciones que conforman el plan de trabajo de la Gestión Estratégica del Talento Humano en Findeter frente al modelo EFR | I15: Realizar acciones y actividades que hacen parte del modelo efr (alineado con las Rutas de Creación de Valor) con énfasis en los siguientes aspectos: Desarrollo Profesional; Flexibilidad Temporal o Espacial; Calidad en el Empleo; Apoyo a las Familias; Igualdad de Oportunidades | J15: Jefatura de Talento Humano | K15: Luz Adriana Saavedra | L15: 44563 | M15: 44563 | N15: Findeter
C16: Gestión de capacidades institucionales | D16: Direccionamiento Estratégico y Planeación | E16: Planeación Institucional | F16: Fortalecer las capacidades institucionales de las entidades del sector hacienda | G16: Fortalecer la Planeación Institucional en las entidades del Sector Hacienda | H16: 1 Llevar a cabo Reuniones de Análisis Estratégico - RAE | I16: Las reuniones de análisis estratégico - RAE corporativas y por dependencia, permiten realizar el seguimiento de la estratégia para la toma de decisiones oportuna. Se programan dos reuniones por dependencia y dos corporativas | J16: Gerencia de Planeación y Gestión - Planeación Estratégica | K16: Lida Imelda Giraldo Leiton / Clara Mabel Ruiz Sierra (Planeación Estratégica) | L16: 44635 | M16: 44926 | N16: Findeter
C17: Gestión de capacidades institucionales | D17: Direccionamiento Estratégico y Planeación | E17: Planeación Institucional | F17: Fortalecer las capacidades institucionales de las entidades del sector hacienda | G17: Fortalecer la Planeación Institucional en las entidades del Sector Hacienda | H17: 2 Actualizar el documento "Plan Estratégico Corporativo" | I17: Efectuar los ajustes correspondientes derivados de la revisión anual del plan estratégico corporativo, de acuerdo con la aprobación de la Junta Directiva. | J17: Gerencia de Planeación y Gestión - Planeación Estratégica | K17: Lida Imelda Giraldo Leiton / Clara Mabel Ruiz Sierra (Planeación Estratégica) | L17: 44571 | M17: 44651 | N17: Findeter
C18: Gestión de capacidades institucionales | D18: Direccionamiento Estratégico y Planeación | E18: Compras y Contratación Pública | F18: Fortalecer las capacidades institucionales de las entidades del sector hacienda | G18: Fortalecer la Gestión de Compras y Contratación en las entidades del Sector Hacienda | H18: Estructurar el Plan Anual de Adquisiciones -PAA-. | I18: Ejecutar el procedimiento establecido para tal fin CON-PR-001 Procedimiento para elaboración y seguimiento del plan anual de compras. Entregable: Publicación del PAA en página web Intitucional de Findeter. | J18: Dirección de Contratación | K18: Jose Eladio Leon Menjura | L18: 44562 | M18: 44926 | N18: Findeter
C19: Gestión de capacidades institucionales | D19: Direccionamiento Estratégico y Planeación | E19: Compras y Contratación Pública | F19: Fortalecer las capacidades institucionales de las entidades del sector hacienda | G19: Fortalecer la Gestión de Compras y Contratación en las entidades del Sector Hacienda | H19: Mantener dentro del Sistema de Gestión Integrado de Calidad el proceso de Gestión Contractual | I19: Publicar el SGI de la entidad las Políticas de contratación, procedimientos, guias, manuales y formatos del proceso. | J19: Dirección de Contratación | K19: Jose Eladio Leon Menjura | L19: 44562 | M19: 44926 | N19: Findeter
C20: Gestión de capacidades institucionales | D20: GESTIÓN CON VALORES PARA EL RESULTADO (Ventanilla hacia adentro) | E20: Gestión Presupuestal y Eficiencia del Gasto Público | F20: Promover la adecuada administración de los recursos financieros de las Entidades del Sector Hacienda. | G20: Implementar buenas practicas para la administración de recursos financieros en las Entidades del Sector Hacienda | H20: Implementar buenas practicas para la administración presupuestal de Findeter | I20: Establecimiento de reuniones mensuales para el seguimiento a la ejecución del presupuesto de la Entidad | J20: Grupo de Presupuesto - Vicepresidencia de Planeación | K20: Francisco José Ledesma Pérez / Diana Marcela Gómez Aguilar | L20: 44563 | M20: 44926 | N20: Findeter
C21: Gestión para el resultado | D21: GESTIÓN CON VALORES PARA EL RESULTADO (Ventanilla hacia adentro) | E21: Gobierno Digital: TIC para la Gestión | F21: Fortalecer la Gestión TIC y de la Información en las Entidades del Sector Hacienda | G21: Fortalecer el Gobierno Digital en las entidades del SH | H21: Manuales usuario y técnicos de sistemas | I21: Contar con los manuales de usuarios y manuales técnicos y de operación debidamente actualizado, para 20 sistemas de información para optimizar la planeación y gestión de los sistemas de información en la entidad. | J21: Dirección de Tecnología | K21: Juan Alberto Castañeda | L21: 44593 | M21: 44926 | N21: Findeter
C22: Gestión de capacidades institucionales | D22: GESTIÓN CON VALORES PARA EL RESULTADO (Ventanilla hacia adentro) | E22: Defensa Jurídica | F22: Promover la adecuada administración de los recursos financieros de las Entidades del Sector Hacienda. | G22: Desarrollar mecanismos para un adecuado ejercicio de defensa jurídica de las Entidades del Sector Hacienda. | H22: 1 Participar en las capacitaciones de la Comunidad Jurídica del Conocimiento | I22: Participar mínimo en seis (6) de las sesiones programadas para la vigencia 2022 por la ANDJE | J22: Dirección Jurídica | K22: Susan Echeverry | L22: 44562 | M22: 44561 | N22: Findeter
C23: Gestión de capacidades institucionales | D23: GESTIÓN CON VALORES PARA EL RESULTADO (Ventanilla hacia adentro) | E23: Defensa Jurídica | F23: Promover la adecuada administración de los recursos financieros de las Entidades del Sector Hacienda. | G23: Desarrollar mecanismos para un adecuado ejercicio de defensa jurídica de las Entidades del Sector Hacienda. | H23: 2 Dar instrucción a los abogados de la Dirección Jurídica de la aplicación de las Políticas y Líneas de Defensa. | I23: Mediante memorando dar instrcción a los abogados de la Dirección Jurídica para que aplique las Politicas y Lineas de Defensa de Findeter. | J23: Dirección Jurídica | K23: Susan Echeverry | L23: 44562 | M23: 44561 | N23: Findeter
C24: Gestión para el resultado | D24: Gestión con valores para el resultado (Ventanilla hacia afuera) | E24: Mejora Normativa ** | F24: Fortalecer las relaciones de las entidades del Sector Hacienda con sus grupos de valor | G24: Promover el seguimiento y mejora continua de las acciones que se realizan para fortalecer las relaciones con los grupos de valor en las entidades del Sector Hacienda. | H24: 1 Participar en las mesas sectoriales de la política de Defensa Jurídica del Sector Hacienda | I24: Participar en las reuniones programadas por el líder sectorial de la política de Defensa Jurídica del MHCP y entregar la información requerida para el fortalecimiento y documentación de estas políticas. | J24: Dirección Jurídica | K24: Susan Echeverry | L24: 44562 | M24: 44561 | N24: Findeter
C25: Gestión para el resultado | D25: Gestión con valores para el resultado (Ventanilla hacia afuera) | E25: Servicio al ciudadano | F25: Fortalecer las relaciones de las entidades del Sector Hacienda con sus grupos de valor | G25: Promover el seguimiento y mejora continua de las acciones que se realizan para fortalecer las relaciones con los grupos de valor en las entidades del Sector Hacienda. | H25: Encuesta de satisfacción sección comunidades | I25: De acuerdo al resultado de la encuesta de satisfacción 2021, definir e implementar plan de acción por parte de la gestión social, e implementar el plan de mejora para el 2022 | J25: Gerencia de Comunicaciones, Mercadeo y Responsabilidad Social | K25: RSE - Maria Claudia Valencia | L25: 44562 | M25: 44926 | N25: Findeter
C26: Gestión para el resultado | D26: Gestión con valores para el resultado (Ventanilla hacia afuera) | E26: Servicio al ciudadano | F26: Fortalecer las relaciones de las entidades del Sector Hacienda con sus grupos de valor | G26: Promover el seguimiento y mejora continua de las acciones que se realizan para fortalecer las relaciones con los grupos de valor en las entidades del Sector Hacienda. | H26: Punto de atención al ciudadano (PAC) | I26: A través de los planes de gestión social de los proyectos (planificación - estructuración - ejecución) implementar componente de comunicación y divulgación, asegurando el funcionamiento de los PAC | J26: Gerencia de Comunicaciones, Mercadeo y Responsabilidad Social | K26: RSE - Maria Claudia Valencia | L26: 44562 | M26: 44926 | N26: Findeter
C27: Gestión para el resultado | D27: FINDETER>PAA 2022> Relacionamiento con el ciudadano | E27: Servicio al ciudadano | F27: GR1. Fortalecer las relaciones de las entidades del Sector Hacienda con sus grupos de valor | G27: SH.Ini.2019.2022.GR1.001 Promover el seguimiento y mejora continua de las acciones que se realizan para fortalecer las relaciones con los grupos de valor en las entidades del Sector Hacienda. | H27: Participar en las mesas sectoriales programadas para las políticas que tienen relación con el Estado -Ciudadano | I27: Las entidades del Sector Hacienda participaran en las mesas sectoriales programadas. En el marco de la Ley 2052 de 2020, se integran las políticas de Servicio al Ciudadano, Racionalización de Trámites, Participación Ciudadana y Transparencia; esta última se incorpora dada la importancia que tiene la publicación de la información. Entregable. Registros de asistencia, presentaciones, informes | J27: Gerencia de Comunicaciones, Mercadeo y Responsabilidad Social | K27: Erika Londoño/ Dora Sofia Velilla | L27: 44593 | M27: 44926 | N27: Findeter
C28: Gestión para el resultado | D28: Gestión con valores para el resultado (Ventanilla hacia afuera) | E28: Servicio al ciudadano | F28: Fortalecer las relaciones de las entidades del Sector Hacienda con sus grupos de valor | G28: Promover el seguimiento y mejora continua de las acciones que se realizan para fortalecer las relaciones con los grupos de valor en las entidades del Sector Hacienda. | H28: Caracterización | I28: Identificar y definir las caracteristicas demograficas y psicograficas de: Intermediarios financieros producto redescuento Usuarios Findeter a un clic | J28: Gerencia de Comunicaciones, Mercadeo y Responsabilidad Social | K28: Erika Londoño/ Dora Sofia Velilla | L28: 44593 | M28: 44926 | N28: Findeter
C29: Gestión para el resultado | D29: Gestión con valores para el resultado (Ventanilla hacia afuera) | E29: Participación Ciudadana en la Gestión Pública | F29: Fortalecer las relaciones de las entidades del Sector Hacienda con sus grupos de valor | G29: Promover el seguimiento y mejora continua de las acciones que se realizan para fortalecer las relaciones con los grupos de valor en las entidades del Sector Hacienda. | H29: Participación comunitaria | I29: A través de los planes de gestión social de los proyectos (planificación - estructuración - ejecución) implementar componente de comunicación y divulgación, asegurando el cumplimiento de las reuniones de inicio y cierre | J29: Gerencia de Comunicaciones, Mercadeo y Responsabilidad Social | K29: RSE - Maria Claudia Valencia | L29: 44562 | M29: 44926 | N29: Findeter
C30: Gestión para el resultado | D30: Gestión con valores para el resultado (Ventanilla hacia afuera) | E30: Participación Ciudadana en la Gestión Pública | F30: Fortalecer las relaciones de las entidades del Sector Hacienda con sus grupos de valor | G30: Promover el seguimiento y mejora continua de las acciones que se realizan para fortalecer las relaciones con los grupos de valor en las entidades del Sector Hacienda. | H30: Realizar el estudio de satisfacción e incluir la base de comunidades | I30: Resultado estudio de Sastisfaccion-Comunidades | J30: Gerencia de Comunicaciones, Mercadeo y Responsabilidad Social | K30: Erika Londoño/ Dora Sofia Velilla | L30: 44593 | M30: 44926 | N30: Findeter
C31: Gestión para el resultado | D31: Gestión con valores para el resultado (Ventanilla hacia afuera) | E31: Participación Ciudadana en la Gestión Pública | F31: Fortalecer las relaciones de las entidades del Sector Hacienda con sus grupos de valor | G31: Promover el seguimiento y mejora continua de las acciones que se realizan para fortalecer las relaciones con los grupos de valor en las entidades del Sector Hacienda. | H31: Integracion de Documentos requeridos por ley de Transparencia | I31: La ley de Transparencia requiere la publicación de 2 instrumentos Plan de Participáción Ciudadana y Plan de Servicio al Ciudadano. Se verificará las caracteristicas y requisitos de cada uno de ellos y se integrarán en un solo documento denominado "Plan de participación y servicio al ciudadano" | J31: Gerencia de Comunicaciones, Mercadeo y Responsabilidad Social | K31: Erika Londoño/ Dora Sofia Velilla | L31: 44593 | M31: 44926 | N31: Findeter
C32: Gestión para el resultado | D32: Gestión con valores para el resultado (Ventanilla hacia afuera) | E32: Participación Ciudadana en la Gestión Pública | F32: Fortalecer las relaciones de las entidades del Sector Hacienda con sus grupos de valor | G32: Promover el seguimiento y mejora continua de las acciones que se realizan para fortalecer las relaciones con los grupos de valor en las entidades del Sector Hacienda. | H32: Identificar oportunidades de mejora como resultado de los ejercicios de participación ciudadana realizados | I32: Analisis y generación de acciones de mejora como resultado de los ejercicios de participación ciudadana realizados | J32: Gerencia de Comunicaciones, Mercadeo y Responsabilidad Social | K32: Erika Londoño/ Dora Sofia Velilla | L32: 44593 | M32: 44926 | N32: Findeter
C33: Gestión misional | D33: FINDETER>PAA 2022>Gestión Misional | E33: Participación Ciudadana en la Gestión Pública | F33: GM1. Contribuir al logro de los pactos del Plan Nacional de Desarrollo en los cuales participa el Sector Hacienda | G33: SH.Ini.2019.2022.GM1.Desarrollar las acciones misionales que contribuyan al logro de los objetivos del sector y del Gobierno nacional. | H33: Implementar acciones de participación ciudadana en desarrollo de los programas de planificación territorial en las regiones. | I33: El programa de planificación tiene como objetivo validar, identificar y priorizar acciones para promover la sostenibilidad de Colombia y liderar su transformación, con la participación de las autoridades locales (electas), sector privado y público, academia y ciudadanía, quienes apoyan la identificación de la problemática y necesidades de inversión de las ciudades. Con esas acciones de participación ciudadana, se propicia la integración regional o para la priorización de proyectos que contribuyen de manera integral al desarrollo de los entes territoriales. | J33: Dirección de Ciudades y Competitividad | K33: Daniela Mojica | L33: 44562 | M33: 44926 | N33: Findeter
C34: Gestión para el resultado | D34: Información y Comunicación | E34: Gestión Documental | F34: Fortalecer la Gestión TIC y de la Información en las Entidades del Sector Hacienda | G34: Fortalecer la Gestión de Documental en las entidades del Sector Hacienda | H34: Mantener actualizados y publicados los instrumentos propios de la gestión documental de Findeter. | I34: Los instrumentos propios de la gestión documental de Findeter corresponden a: (Programa de Gestión Documental, Plan Institucional de Archivos, Tablas de retención documental, cuadro de Clasificación documental, Sistema Integrado de Conservación, Registro de Activos de Información, Índice de Información Clasificada y Reservada ) | J34: Jefatura de Servicios Generales | K34: Claudia Yovanna Moreno | L34: 44228 | M34: 44560 | N34: Findeter
C35: Gestión para el resultado | D35: FINDETER> PAA 2022>Gestión Documental | E35: Gestión Documental | F35: GR2.Fortalecer la Gestión TIC y de la Información en las Entidades del Sector Hacienda | G35: SH.Ini.2019.2022.GR2.001 Fortalecer la Gestión Documental en las entidades del SH | H35: Participar en las mesas sectoriales de la política de gestión documental | I35: Participar en las mesas sectoriales de la política de gestión documental, coordinadas por el MHCP. Entregable. Registros de asistencia | J35: Jefatura de Servicios Generales GDO | K35: Claudia Yovanna Moreno | L35: 44197 | M35: 44561 | N35: Findeter
C36: Gestión para el resultado | D36: Información y Comunicación | E36: Gestión Documental | F36: Fortalecer la Gestión TIC y de la Información en las Entidades del Sector Hacienda | G36: Fortalecer la Gestión de Documental en las entidades del Sector Hacienda | H36: Verificar los terminos de entrega y custodia de los Fondos documentales provenientes de otras entidades | I36: Verificar de acuerdo a los terminos de entrega y recibo de los Fondos documentales provenientes de entidades liquidadas si estas solo se deben custodiar o se debe implementar una organización documental adecuada | J36: Jefatura de Servicios Generales GDO | K36: Claudia Yovanna Moreno | L36: 44409 | M36: 44742 | N36: Findeter
C37: Gestión para el resultado | D37: Información y Comunicación | E37: Transparencia, acceso a la información pública y lucha contra la corrupción | F37: Fortalecer la Gestión TIC y de la Información en las Entidades del Sector Hacienda | G37: Fortalecer la Gestión de Documental en las entidades del Sector Hacienda | H37: Levantar el plan de trabajo, iniciar levantamiento de TVD y entrega de informes trimestrales al AGN según PMA | I37: Cumplir con el plan de trabajo, realizar y entregar los informes trimestrales de avance de levantamiento de TVD ante el AGN | J37: Jefatura de Servicios Generales GDO | K37: Claudia Yovanna Moreno | L37: 44197 | M37: 44681 | N37: Findeter
C38: Gestión para el resultado | D38: Información y Comunicación | E38: Transparencia, acceso a la información pública y lucha contra la corrupción | F38: Fortalecer las relaciones de las entidades del Sector Hacienda con sus grupos de valor | G38: Cumplir publicación de la información a la luz de la ley 1712 de 2014 | H38: Emplear diferentes medios digitales en los ejercicios de participación realizados por la entidad | I38: Potenciar el empleo de los medios digitales en los diferentes eventos de participación ciudadana en los que participe o realice Findeter | J38: Atención al Ciudadano: Gerencia de Comunicaciones, Mercadeo y Responsabilidad Social | K38: Erika Londoño/ Dora Sofia Velilla | L38: 44593 | M38: 44926 | N38: Findeter
C39: Gestión para el resultado | D39: Información y Comunicación | E39: Transparencia, acceso a la información pública y lucha contra la corrupción | F39: Fortalecer las relaciones de las entidades del Sector Hacienda con sus grupos de valor | G39: Cumplir publicación de la información a la luz de la ley 1712 de 2014 | H39: Seguimiento comunitario | I39: A través de los planes de gestión social de los proyectos (planificación - estructuración - ejecución) implementar componente de seguimiento y evaluación, asegurando la conformación y el seguimiento de comités de sostenibilidad y/o veedurías ciudadana cuando aplique la última | J39: Atención al Ciudadano: Gerencia de Comunicaciones, Mercadeo y Responsabilidad Social | K39: RSE - Maria Claudia Valencia | L39: 44562 | M39: 44926 | N39: Findeter
C40: Gestión para el resultado | D40: Información y Comunicación | E40: Transparencia, acceso a la información pública y lucha contra la corrupción | F40: Fortalecer las relaciones de las entidades del Sector Hacienda con sus grupos de valor | G40: Contribuir a la obtención de niveles de excelencia en el ejercicio de la función disciplinaria | H40: Asistir a las sesiones del Colectivo Disciplinario | I40: Asistencia y participación en las reuniones programadas por el Colectivo Disciplinario. | J40: Secretaría General | K40: Norma Bibiana Soto Ayala | L40: 44563 | M40: 44926 | N40: Findeter
C41: Gestión para el resultado | D41: Información y Comunicación | E41: Transparencia, acceso a la información pública y lucha contra la corrupción | F41: Fortalecer las relaciones de las entidades del Sector Hacienda con sus grupos de valor | G41: Contribuir a la obtención de niveles de excelencia en el ejercicio de la función disciplinaria | H41: Atender los compromisos derivados de los comites del Colectivo Disciplinario | I41: Ejecución y cumplimiento de las tareas asignadas a la Entidad en desarrollo de los comites del colectivo disciplinario | J41: Secretaría General | K41: Norma Bibiana Soto Ayala | L41: 44563 | M41: 44926 | N41: Findeter
C42: Gestión para el resultado | D42: FINDETER>PAA 2022>Transparencia, acceso a la información y lucha contra la corrupción | E42: Transparencia, acceso a la información pública y lucha contra la corrupción | F42: GR1. Fortalecer las relaciones de las entidades del Sector Hacienda con sus grupos de valor | G42: SH.Ini.2019.2022.GR1.002 Contribuir a la obtención de niveles de excelencia en el ejercicio de la función disciplinaria | H42: Participar en la celebración del día de la transparencia | I42: De acuerdo con el cronograma establecido por el líder sectorial, se participará de la celebración del día de la transparencia | J42: Secretaría General | K42: Norma Bibiana Soto Ayala | L42: 44835 | M42: 44926 | N42: Findeter
C43: Gestión de capacidades institucionales | D43: Gestión del Conocimiento y la Innovación | E43: Gestión del Conocimiento y la Innovación | F43: Fortalecer las capacidades institucionales de las entidades del sector hacienda | G43: Implementar buenas practicas en torno a la gestión del conocimiento e innovación en las Entidades del Sector Hacienda | H43: 1 Desarrollar un proyecto con al menos un actor del Sistema de Ciencia, Tecnología e Innovación | I43: Proyecto formulado con el acompañamiento de un actor en busca de una solución a un reto de innovación | J43: Gerencia de Planeación y Gestión - CIC | K43: Andrea Rojas Ávila | L43: 44593 | M43: 44926 | N43: Findeter
C44: Gestión de capacidades institucionales | D44: Gestión del Conocimiento y la Innovación | E44: Gestión del Conocimiento y la Innovación | F44: Fortalecer las capacidades institucionales de las entidades del sector hacienda | G44: Implementar buenas practicas en torno a la gestión del conocimiento e innovación en las Entidades del Sector Hacienda | H44: 2 Programa de retos 2022 | I44: Retos identificados con su respectiva solución y plan de implementación. | J44: Gerencia de Planeación y Gestión - CIC | K44: Andrea Rojas Ávila | L44: 44652 | M44: 44926 | N44: Findeter
C45: Gestión de mejoramiento continuo | D45: Control Interno | E45: Control Interno | F45: Promover el mejoramiento continuo de las Entidades del Sector Hacienda. | G45: Fortalecer el Control Interno de las Entidades del Sector Hacienda. | H45: 1 Realizar plan anual de auditoría | I45: Ejecutar y finalizar el 100% de las auditorías de Gestión, generando los entregables de los mismos, con sus respectivos planes de acción | J45: Oficina de Control Interno de Gestión | K45: Rubiela Hernández | L45: 44536 | M45: Marzo del 2023 | N45: Findeter
C46: Gestión para el resultado | D46: FINDETER> PAA 2022> Relacionamiento con el Ciudadano | E46: Transparencia, acceso a la información pública y lucha contra la corrupción | F46: GR1. Fortalecer las relaciones de las entidades del Sector Hacienda con sus grupos de valor | G46: SH.Ini.2019.2022.GR1.001 Promover el seguimiento y mejora continua de las acciones que se realizan para fortalecer las relaciones con los grupos de valor en las entidades del Sector Hacienda. | H46: Actualizar el portafolio de servicios de cada entidad y ponerlo a disposición de los grupos de valor en los diferentes canales de comunicación | I46: De acuerdo a la misionalidad de la entidad actualizar el portafolio de productos y servicios, y gestionar la publicación en los diferentes canales de comunicación, con el fin de orientar a los grupos de valor, y que tenga criterios de accesibilidad, lenguaje claro y gobierno abierto. | J46: Gerencia de Comunicaciones, Mercadeo y Responsabilidad Social | K46: Erika Londoño/ Dora Sofia Velilla | L46: 44593 | M46: 44926 | N46: Findeter
C47: Gestión para el resultado | D47: FINDETER>PAA 2022> Relacionamiento con el ciudadano | E47: Gestión del Conocimiento y la Innovación | F47: GR1. Fortalecer las relaciones de las entidades del Sector Hacienda con sus grupos de valor | G47: SH.Ini.2019.2022.GR1.001 Promover el seguimiento y mejora continua de las acciones que se realizan para fortalecer las relaciones con los grupos de valor en las entidades del Sector Hacienda. | H47: Participar en el ejercicio de innovación abierta denominado OPEN HACIENDA para la formulación de la planeación estratégica entre otras acciones que requieran de la participación de los grupos de valor. | I47: Participar en el ejercicio de innovación abierta denominado OPEN HACIENDA (suministro y análisis de información). | J47: Gerencia de Planeación y Gestión - CIC | K47: Andrea Rojas Ávila | L47: 44562 | M47: 44926 | N47: Findeter
C48: Gestión de capacidades institucionales | D48: FINDETER > PAA 2022 > Ruta de Creación de Valor | E48: Talento Humano | F48: GCI1. Fortalecer las capacidades del Talento Humano y la Innovación en las entidades del Sector Hacienda | G48: SH.Ini.2019.2022. GCI1.001 Fortalecer la implementación de la política del Talento Humano en las Entidades del Sector Hacienda | H48: Analizar los resultados de la dimensión de Talento Humano en la medición del Furag de la vigencia 2020. | I48: De acuerdo con los resultados obtenidos en la medición del FURAG de la gestión 2020, que realiza el DAFP en la vigencia 2021. Cada entidad del Sector Hacienda, analizará sus resultados y ajustará cuando lo considere pertinente, los planes con el propósito de generar acciones que permitan cerrar brecha, en relación con la política de Talento Humano y de integridad. Entregable. Documento que soporte el análisis de los resultados del Furag o planes ajustados. | J48: Jefatura de Talento Humano | K48: Ángela Shirley Téllez y Ricardo Soto Baron | L48: 44563 | M48: 44926 | N48: Findeter
C49: Gestión de capacidades institucionales | D49: FINDETER > PAA 2022> Gestión del conocimiento e innovación | E49: Gestión del Conocimiento y la Innovación | F49: GCI1. Fortalecer las capacidades del Talento Humano y la Innovación en las entidades del Sector Hacienda | G49: SH.Ini.2019.2022.GCI1.003 Fortalecer la implementación de la política de Gestión de Conocimiento e Innovación en las Entidades del Sector | H49: Analizar los resultados de la política de Gestión del Conocimiento y la Innovación en la medición del Furag de la vigencia 2021. | I49: De acuerdo con los resultados obtenidos en la medición del FURAG de la gestión 2021, que realiza el DAFP en la vigencia 2022. Cada entidad del Sector Hacienda, analizará sus resultados y ajustará cuando lo considere pertinente, el plan de Gestión del Conocimiento y la Innovación con el propósito de generar acciones que permitan cerrar brecha, según el caso. Entregable. Documento que soporte el análisis de los resultados del Furag, plan de mejora, plan ajustados o documento que evidencie el ejercicio de análisis. | J49: Gerencia de Planeación y Gestión - CIC | K49: Andrea Rojas Ávila | L49: 44562 | M49: 44926 | N49: Findeter
C50: Gestión de capacidades institucionales | D50: FINDETER > PAA 2022 > Gestión del conocimiento e innovación | E50: Gestión del Conocimiento y la Innovación | F50: GCI1. Fortalecer las capacidades del Talento Humano y la Innovación en las entidades del Sector Hacienda | G50: SH.Ini.2019.2022.GCI1.003 Fortalecer la implementación de la política de Gestión de Conocimiento e Innovación en las Entidades del Sector | H50: Participar en las mesas sectoriales de la política de Gestión del Conocimiento e innovación | I50: Asistir a las reuniones de trabajo sectorial para fomentar el intercambio de conocimientos e información entre los líderes de la política de Gestión del Conocimiento y la Innovación. Entregable: listados de asistencia de dos (2) reuniones en la vigencia 2022 o reporte del MHCP sobre la asistencia de las entidades. | J50: Gerencia de Planeación y Gestión - CIC | K50: Andrea Rojas Ávila | L50: 44562 | M50: 44926 | N50: Findeter
C51: Gestión de capacidades institucionales | D51: FINDETER > PAA 2022 > Gestión del conocimiento e innovación | E51: Gestión del Conocimiento y la Innovación | F51: GCI1. Fortalecer las capacidades del Talento Humano y la Innovación en las entidades del Sector Hacienda | G51: SH.Ini.2019.2022.GCI1.003 Fortalecer la implementación de la política de Gestión de Conocimiento e Innovación en las Entidades del Sector | H51: Participar en la cuarta semana de gestión del conocimiento y la Innovación | I51: Participar en la cuarta semana de gestión del conocimiento y la Innovación | J51: Gerencia de Planeación y Gestión - CIC | K51: Andrea Rojas Ávila | L51: 44562 | M51: 44926 | N51: Findeter
C52: Gestión de capacidades institucionales | D52: FINDETER>PAA 2022> Defensa Jurídica | E52: Defensa Jurídica | F52: GCI2. Promover la adecuada administración de los recursos físicos, financieros y la defensa técnica de las Entidades del Sector Hacienda. | G52: SH.Ini.2019.2022.GCI2.002 Desarrollar mecanismos para un adecuado ejercicio de defensa jurídica de las Entidades del Sector Hacienda | H52: Construir el reporte de índice de condenas en los estudios y/o análisis que realiza la entidad de los procesos que cursan o hayan cursado en su contra, con el fin de proponer las mejoras o correctivos que se requieran | I52: Realizar el análisis de casos perdidos y ganados. (línea base, pronunciamientos durante la vigencia o anteriores) Elaborar informe cualitativo y analítico a partir del cual se formulen conclusiones concretas con las respectivas propuestas de solución, mejora y/o prevención, según corresponda. Entregable: (Pte. determinar instrumento) Reporte de índice de condenas Periodicidad: una (1) vez al año - Plazo: 30 noviembre 2022 | J52: Dirección Jurídica | K52: Susan Echeverry | L52: 44562 | M52: 44561 | N52: Findeter
C53: Gestión de capacidades institucionales | D53: FINDETER > PAA 2022 > Defensa Jurídica | E53: Defensa Jurídica | F53: GCI2. Promover la adecuada administración de los recursos físicos, financieros y la defensa técnica de las Entidades del Sector Hacienda. | G53: SH.Ini.2019.2022.GCI2.002 Desarrollar mecanismos para un adecuado ejercicio de defensa jurídica de las Entidades del Sector Hacienda | H53: Participar en las mesas sectoriales de la política de Defensa Jurídica del Sector Hacienda | I53: Participar en dos mesas programadas por el líder sectorial de la política de Defensa Jurídica del MHCP y entregar la información requerida para el fortalecimiento y documentación de estas políticas. | J53: Dirección Jurídica | K53: Susan Echeverry | L53: 44562 | M53: 44561 | N53: Findeter

Sheet Plan de Vacantes (hidden)
D8: Plan Anual de Vacantes
B10: Área Organizativa | C10: Nombre de la tarea | D10: Descripción | E10: Categoría / Proyecto (Opcional) | F10: Política de Gestión y Desempeño | G10: Responsable de tarea | H10: Fecha Inicio | I10: Fecha Fin | J10: Fuente de Financiación
B11: Subdirección de Talento Humano | C11: Formulación y adopción del Plan | D11: Estructuración del Plan y publicación en la página web | F11: Talento humano | G11: Patricia Caiza Rosero | H11: 2018-01-01 | I11: 2018-07-31 | J11: Funcionamiento

Sheet Hoja1 (hidden)

Sheet PAAC consolidado
E2: PLAN ANTICORRUPCIÓN Y DE ATENCIÓN AL CIUDADANO FINDETER 2022
B9: PLAN ANTICORRUPCIÓN Y DE ATENCIÓN AL CIUDADANO
B10: Entidad: | C10: FINANCIERA DE DESARROLLO TERRITORIAL S.A.
B11: Vigencia: | C11: Año 2022
B12: Fecha de Publicación: | C12: 44592
B13: Objetivo General: | C13: Hacer del plan anticorrupción y de atención al ciudadano, una herramienta de gestión que fomente la participación y el mejoramiento de los mecanismos de atención al ciudadano, la transparencia y eficiencia en el uso de los recursos, en busca de prevenir la corrupción y favorecer mayor calidad y accesibilidad a los servicios e información del quehacer misional de la Entidad.
B14: Objetivos Específicos: | C14: 1. Mediante la construcción de la Matriz de Riesgos de Corrupción (MRC), disponer de una herramienta que facilite la gestión de prevención de los riesgos de corrupción, a través de acciones que permitan su adecuado monitoreo y seguimiento.
C15: 2. Establecer los aspectos a mejorar en los servicios registrados por la Entidad ante el SUIT, conducentes a facilitar al cliente ciudadano el acceso a los servicios y productos que brinda Findeter, cuyas acciones de tipo normativo, administrativo ó tecnológico conformarán la estrategia de racionalización a realizar en la presente vigencia.
C16: 3. Propiciar acciones de diálogo, entrega de información e incentivos, que le permitan a Findeter hacer un proceso de rendición de cuentas institucional dinámico y de doble vía.
C17: 4. Hacer de la gestión del servicio al ciudadano en Findeter una labor integral, mediante la formulación de acciones que coadyuven a que el servicio prestado por la Entidad responda de manera adecuada a las necesidades y expectativas de los clientes ciudadanos y grupos de interés en general.
C18: 5. Establecer acciones encaminadas a disponer de manera adecuada los mecanismos de acceso a la información a los clientes ciudadanos y grupos de interés en general, con criterios de calidad, veracidad, accesibilidad y oportunidad, en atención a los lineamientos de la Ley 1712 de 2014.
B19: Componente 1 | C19: Gestión del Riesgo de Corrupción - Mapa de Riesgos de Corrupción
B20: Subcomponente / procesos | C20: Actividades | F20: Meta o producto | G20: Responsable | H20: Fecha programada 2022 | L20: Indicador (Si Aplica) | M20: Fórmula | N20: Meta 2020 | O20: Observaciones | P20: Seguimiento Trimestre 1 | Q20: Seguimiento Trimestre 2 | R20: Seguimiento Trimestre 3 | S20: Seguimiento Trimestre 4 | T20: Meta Trimestre 1 | U20: Meta Trimestre 2 | V20: Meta Trimestre 3 | W20: Meta Trimestre 4 | X20: Ejecución - Trimestre 1 | Y20: Ejecución - Trimestre 2 | Z20: Ejecución - Trimestre 3 | AA20: Ejecución - Trimestre 4
H21: Ene - Mar | I21: Abr -Jun | J21: Jul-Sept | K21: Oct - Dic
B22: Subcomponente / proceso 1 Política de Administración de Riesgos | C22: 1.1 | D22: Actualizar documento del Programa Antifraude y Corrupción, si se presentan modificaciones durante la vigencia. | F22: Documento Programa Antifraude y Corrupción revisado y actualizado. | G22: Vicepresidencia de Riesgos - Oficial de Cumplimiento (Jaime Florez G.) | H22: Enero | L22: NA | M22: Monitoreos realizados/Monitoreos requeridos | N22: 100% Programa Antifraude y Corrupción revisado y actualizado. | O22: Las actualizaciones se realizarán según necesidad identificada. | U22: =(1/2)*100% -> 0.5 | W22: =(2/2)*100% -> 1
B23: Subcomponente / proceso 2 Construcción del Mapa de Riesgos de Corrupción | C23: 2.1 | D23: Revisar integralmente la matriz de riesgo: riesgos asociados a eventos, redacción de eventos, medición del riesgo residual, atributos de controles y generación de los riesgos en el mapa. | F23: Matriz de riesgos revisada y publicada. | H23: Enero | L23: NA | M23: Revisión realizada/Revisión requerida | N23: 100 Matriz de riesgos revisada y publicada. | O23: La revisión se realizará de acuerdo con la normatividad establecida, y se harán adicionales de ser necesario . | T23: =(1/1)*100% -> 1
B24: Subcomponente / proceso 3 Consulta y divulgación | C24: 3.1 | D24: Realizar jornadas de sensibilización sobre Fraude y Corrupción: Capacitación 1 y publicaciones 4. | F24: Jornadas finalizadas. | H24: Enero a Diciembre | L24: NA | M24: Actividades realizadas/Actividades programadas requerida | N24: 100% Actividades finalizadas. | O24: Publicaciones : 1 por trimestre. Capacitación: 1 trimestre cuatro. Campaña: 1 trimestre 3. | T24: =1/6 -> 0.1666666667 | U24: =2/6 -> 0.3333333333 | V24: =4/6 -> 0.6666666667 | W24: =6/6 -> 1
B25: Subcomponente / proceso 4 Monitoreo y revisión | C25: 4.1 | D25: Efectuar y documentar las pruebas de recorrido de los controles. | F25: Prueba de recorrido de controles realizada | J25: Julio a Diciembre | L25: NA | M25: Procesos revisados / procesos a revisar | N25: 100% Prueba de recorrido de controles realizada | O25: Procesos a aplicar prueba de recorrido: 4. Dos en tercer trimestre y dos en cuarto trimestre. | V25: =2/4 -> 0.5 | W25: =4/4 -> 1
B26: Subcomponente / proceso 5 Seguimiento | C26: 5.1 | D26: Análisis de causas, riesgos corrupción y efectividad de controles | F26: Informe seguimiento | G26: Oficina de Control Interno de Gestión (Doris Marquez) | H26: Ene-Dic | L26: NA
B27: Componente 2 | C27: Racionalización de Trámites (Herramienta SUIT)
B28: Findeter no contará en el año 2022 con una estrategia de racionalización de trámites, toda vez que de acuerdo con lo establecido en la Directiva Presidencial No. 2 "SIMPLIFICACIÓN DE LA INTERACCIÓN DIGITAL ENTRE LOS CIUDADANOS Y EL ESTADO y de acuerdo con concepto de la Función Pública con respecto a los "Otros Procedimientos Administrativos - OPAS" que la Entidad tiene registrados en el aplicativo SUIT: ".....no se aplica en lo ateniente a trámites o servicios porque no conllevan para el ciudadano el acceso a un derecho o el ejercicio de una actividad u obligación prevista o autorizada por la ley, por tratarse de negocios jurídicos de contenido económico, sujetos al cumplimiento de unas condiciones específicas por parte de unas personas jurídicas, las cuales no son masivas....."; En consideración a lo anterior, a través del Plan de Integración - PIN con gov.co, se solicitó la eliminación de dichos OPAS del SUIT.
B29: Componente 3 | C29: Rendición de Cuentas
B30: Subcomponente / procesos | C30: Actividades | F30: Meta o producto | G30: Responsable | H30: Fecha programada 2022 | L30: Indicador (Si Aplica) | M30: Fórmula | N30: Meta 2020 | O30: Observaciones | P30: Seguimiento Trimestre 1 | Q30: Seguimiento Trimestre 2 | R30: Seguimiento Trimestre 3 | S30: Seguimiento Trimestre 4 | T30: Meta Trimestre 1 | U30: Meta Trimestre 2 | V30: Meta Trimestre 3 | W30: Meta Trimestre 4 | X30: Ejecución - Trimestre 1 | Y30: Ejecución - Trimestre 2 | Z30: Ejecución - Trimestre 3 | AA30: Ejecución - Trimestre 4
H31: Ene - Mar | I31: Abr -Jun | J31: Jul-Sept | K31: Oct - Dic
B32: Subcomponente 1 Información de calidad y en lenguaje comprensible | C32: 1.1 | D32: Participar en eventos en donde se socialice la gestión realizada por la Entidad a los diferentes Grupos de interes (Foros, Cumbres, Conversatorios, etc). | F32: Participar por lo menos en cuatro (4) eventos | G32: Jefatura de Mercadeo de la Gerencia de Comunicaciones (Dora Velilla - Erika Londoño) | H32: Enero a junio y de julio a Diciembre
C33: 1.2 | D33: Divulgar la Rendición de Cuentas Sectorial a la ciudadanía en general (según directrices del Ministerio de Hacienda), antes, durante y después, mediante los diferentes canales y medios de comunicación (Redes Sociales, Página Web y otros). | F33: Rendición de Cuentas Sectorial Divulgada | K33: Oct - Dic
B34: Subcomponente 2 Diálogo de doble vía con la ciudadanía y sus organizciones | C34: 2.1 | D34: Organizar y ejecutar acciones de diálogo (Foros, Seminarios, Asambleas, Conversatorios, Talleres, etc) en donde se socialice la gestión realizada por la Entidad a los diferentes Grupos de interes. (Dichas acciones hacen parte del proceso permanente de Rendición de Cuentas de la Entidad.) | F34: Por lo menos 4 acciones de diálogo en el año | H34: Enero a Junio | J34: Julio - Diciembre
C35: 2.2 | D35: Participar en la Rendición de Cuentas Sectorial liderada por el Ministerio de Hacienda y Crédito Público. | F35: Evento Rendición de Cuentas Sectorial realizada | J35: Julio - Diciembre
B36: Subcomponente 3 Incentivos para motivar la cultura de la rendición y petición de cuentas | C36: 3.1 | D36: Realizar Planes de Relacionamiento (PR) (Grupos de interés y Medios de Comunicación) | F36: Por lo menos cuatro (4) PR | H36: Enero a Junio | J36: Julio - Diciembre
B37: Subcomponente 4 Evaluación y retroalimentación a la gestión institucional | C37: 4.1 | D37: Evaluar la atención de los usuarios en el chat de la entidad de Findeter que permita determinar elementos de mejora para el mismo | F37: Informe estado de PQR´S (*) | H37: Enero a Junio | J37: Julio - Diciembre
C38: 4.2 | D38: Realizar evaluación de la estrategia de rendición de cuentas institucional, dada la participación de Findeter en la Rendición de Cuentas Sectorial. | F38: Informe Evaluación RC | G38: Oficina de Control Interno de Gestión (Doris Marquez) | K38: Dic
B39: Participación Ciudadana en la etapa de formulación de los programas liderados desde la Dirección de Competitividad y Desarrollo | C39: 5.1 | D39: Fase de planeación: Recolectar información de la ciudadanía (autoridades locales, sector privado, academia, entidades sin ánimo de lucro; gremios, líderes locales y comunidad) para la identificación de los principales problemas de la ciudad, a través de la realización de talleres, reuniones, foros, mesas de trabajo, grupos focales u otros para el diagnóstico territorial. | F39: Información recolectada de los principales problemas de la ciudad | G39: Dirección de Ciudades y Competitividad (Daniela Mojica - Alejandra de la Espriella) | H39: Ene- Mar | L39: NO | N39: 1
D40: Fase de planeación: Levantar indicadores o seguimiento a los indicadores ya existentes en los instrumentos de planificación vinculantes del territorio. | F40: Levantamiento y/o seguimiento de Indicadores (dimensiones: económica, social, ambiental y fiscal y semaforización) en los instrumentos de planificación del territorio. | H40: Ene- Mar | L40: NO | N40: 1
B41: Participación Ciudadana en la etapa de formulación de los programas liderados desde la Dirección de Competitividad y Desarrollo | C41: 5.2 | D41: Fase análisis diagnóstico: Elaborar el diagnóstico de acuerdo con los resultados de la fase de planeación. Así mismo, realizar ejercicio de análisis y priorización problemática de ciudades, basados en la información recopilada, indicadores, diagnósticos y filtros para determinar sectores y temas prioritarios para sostenibilidad de ciudades, basados en su problemática, por lo que estos temas representan para la ciudadanía. | F41: Diagnóstico y análisis de priorización elaborado | I41: Abr - Jun | L41: NO | N41: 1
B42: Promoción del control social en los programas liderados por la Dirección de Competitividad y Desarrollo | C42: 5.3 | D42: Fase estructuración del Plan de Acción o formulación y ajustes a los instrumentos de ordenamiento territorial vinculantes: Definir la planeación estratégica; formular los Ejes Estratégicos y Planes de acción para cada ciudad y la visión de las ciudades que garanticen actuar en sus temas relevantes. | F42: Plan de Acción formulado | I42: Abr - Jun | L42: NO | N42: 1
B43: Componente 4 | C43: Atención al Ciudadano
B44: Subcomponente / procesos | C44: Actividades | F44: Meta o producto | G44: Responsable | H44: Fecha programada 2022
H45: Ene - Mar | I45: Abr -Jun | J45: Jul-Sept | K45: Oct - Dic
B46: Subcomponente 1 Estructura administrativa y Direccionamiento estratégico | C46: 1.1 | D46: Realizar capacitación en servicio al cliente | F46: 1 capacitación | G46: Jefatura de Mercadeo de la Gerencia de Comunicaciones (Dora Velilla - Erika Londoño) | H46: Febrero - Diciembre
B47: Subcomponente 2 Fortalecimiento de los canales de atención | C47: 2.1 | D47: Realizar seguimiento al Indicador de Oportunidad de Respuesta de Servicio al cliente- Inquietudes y Sugerencias | F47: Medición del Indicador | H47: Ene - Mar | I47: Abr - Jun | J47: Jul-Sept | K47: Oct - Dic
B48: Subcomponente 3 Talento Humano | C48: 3.1 | D48: Fortalecer la nueva estrategia de servicio al cliente de la Entidad, realizando acuerdos de servicio | F48: 1 Acuerdo | H48: Febrero - Junio | J48: Julio - Noviembre
B49: Subcomponente 4 Normativo y procedimental | C49: 4.1 | D49: Actualizar el procedimiento "Atención de Derechos de Petición, Quejas y Reclamos - GC-PR-005" del Sistema de Gestión Integrado -SGI, si se presentan modificaciones durante la vigencia. | F49: Procedimiento Actualizado | H49: Febrero - Diciembre
B50: Subcomponente 5 Relacionamiento con el ciudadano | C50: 5.1 | D50: Realizar medición de percepción de los ciudadanos respecto a la calidad y accesibilidad de la oferta institucional y el servicio recibido. | F50: Encuesta Satisfacción Clientes | H50: Febrero - Diciembre
C51: 5.2 | D51: Elaborar informe trimestral del estado de PQR'S. | F51: Informe estado de PQR´S (*) | H51: Ene - Mar | I51: Abr - Jun | J51: Jul-Sept | K51: Oct - Dic
B52: Componente 5 | C52: Transparencia y Acceso a la Información
B53: Subcomponente / procesos | C53: Actividades | E53: Meta o producto | F53: Entregable | H53: Fecha programada 2022
G54: Responsable | H54: Ene - Marxo | I54: Abr -Jun | J54: Jul-Sept | K54: Oct - Dic
B55: Subcomponente 1 Lineamientos de Transparencia Activa | C55: 1.1 | D55: Validar la actualización de los aspectos publicados en la página web de Findeter, de acuerdo con los ajustes e información remitida por los responsables de cada contenido. Ecosistema digital | F55: Página web actualizada | G55: Gerencia de Comunicaciones (Alvaro Muñoz) | H55: Enero - Junio | J55: Julio - Diciembre
C56: 1.2 | D56: Elaborar informe de todas las solicitudes, denuncias y los tiempos de respuesta de Findeter, sobre las PQRD. | F56: Informe trimestral estado de PQR´S (*) | G56: Jefatura de Mercadeo de la Gerencia de Comunicaciones (Dora Velilla - Erika Londoño) | H56: Ene - Mar | I56: Abr - Jun | J56: Jul-Sept | K56: Oct - Dic
B57: Subcomponente 2 Lineamientos de Transparencia Pasiva | C57: 2.1 | D57: Gestionar las solicitudes de información siguiendo los lineamientos del Programa Nacional de Servicio al Ciudadano. | F57: Informe trimestral estado de PQR´S (*) | H57: Ene - Mar | I57: Abr - Jun | J57: Jul-Sept | K57: Oct - Dic
B58: Subcomponente 3 Elaboración de los Instrumentos de Gestión de la Información | C58: 3.1 | D58: Ajustar y/o mantener la publicación de los siguientes de instrumentos de gestión de la información pública de acuerdo con los lineamientos del Programa de Gestión Documental de la Entidad: -Registro ó Inventario de Activos de Información. -Indice de Información Clasificada y reservada. -Esquema de Publicación de Información. | F58: Instrumentos de gestión de la información pública actualizados y publicados | G58: Vicepresidencia de Riegos (Carlos Guzman) y Jefatura de Servicios Generales (Claudia Y. Moreno / Sandra P. Millán) | H58: En dado caso que se requiera la actualización de estos instrumentos alineados a las tablas de retención documental se realizara la respectiva actualización en el portal web de la entidad y en el portal de datos abiertos. | K58: Oct-Dic
C59: 3.2 | D59: Fortalecer programa de formación de usuarios en gestión documental, incluyendo aspectos relacionados con la seguridad de la información y el derecho de acceso a la información pública. | F59: 'Servidores capacitados | G59: Jefatura de Servicios Generales (Claudia Y. Moreno / Sandra P. Millán) | H59: Ene-Mar | I59: Abr-Jun | J59: Jul-Sep | K59: Oct-Dic
C60: 3.3 | D60: Actualizar y publicar en la eventualidad que se requiera para conocimiento de los ciudadanos , los inventarios de activos documentales, que serán descartados del fondo en custodia en el siguiente periodo fiscal. | F60: 'Inventario de activos de información documentales para descarte (Inventario Documental y Actas de eliminación) | G60: Vicepresidencia de Riegos (Carlos Guzman) y Jefatura de Servicios Generales (Claudia Y. Moreno / Sandra P. Millán) | H60: En la eventualidad que se presente el trámite de descarte documental se realizará la respectiva publicación de los inventarios a descarte. | K60: Oct-Dic
C61: 3.4 | D61: Mantener actualizados y publicados los instrumentos propios de la gestión documental de la entidad (Programa de Gestión Documental, Plan Institucional de Archivos, Tablas de retención documental, cuadro de Clasificación documental, Sistema Integrado de Conservación, Matriz de Acceso e inventarios documentales) (enlace https://www.findeter.gov.co/publicaciones/gestion_documental_pub). | F61: ''Programa de Gestión Documental, Plan Institucional de Archivos, Tablas de retención documental, cuadro de Clasificación documental, Sistema Integrado de Conservación, Matriz de Acceso e inventarios documentales, actualizados y publicados | I61: Abr-Jun | K61: Oct-Dic
B62: Subcomponente 4 Criterio Diferencial de Accesibilidad | C62: 4.1 | D62: Accesibilidad en medios electrónicos para la población en situación de discapacidad de acuerdo con el cumplimiento de la norma técnica NTC5854, para nivel AA. | F62: Cumplimiento de la Norma Usabilidad y Accesibidad para la página web | G62: Gerencia de Comunicaciones (Alvaro Muñoz) | H62: Enero - Junio | J62: Julio - Diciembre
B63: Subcomponente 5 Monitoreo del Acceso a la Información Pública | C63: 5.1 | D63: Elaborar informe de solicitudes de acceso a información pública conforme los requerimientos del Decreto 1081/2015 Artículo 2.1.1.6.2. | F63: Informe trimestral estado de PQR´S (*) | G63: Jefatura de Mercadeo de la Gerencia de Comunicaciones (Dora Velilla - Erika Londoño) | H63: Ene-Mar | I63: Abr-Jun | J63: Jul-Sep | K63: Oct-Dic
B64: Componente 6 | C64: Iniciativas Adicionales
B65: Subcomponente / procesos | C65: Actividades | F65: Meta o producto | G65: Responsable | H65: Fecha programada 2022 | L65: Indicador (Si Aplica) | M65: Fórmula | N65: Meta 2020 | O65: Observaciones | P65: Seguimiento Trimestre 1 | Q65: Seguimiento Trimestre 2 | R65: Seguimiento Trimestre 3 | S65: Seguimiento Trimestre 4 | T65: Meta Trimestre 1 | U65: Meta Trimestre 2 | V65: Meta Trimestre 3 | W65: Meta Trimestre 4 | X65: Ejecución - Trimestre 1 | Y65: Ejecución - Trimestre 2 | Z65: Ejecución - Trimestre 3 | AA65: Ejecución - Trimestre 4
H66: Ene - Mar | I66: Abr -Jun | J66: Jul-Sept | K66: Oct - Dic
B67: Subcomponente / proceso: Prevención de la Corrupción | C67: 1.1 | D67: Ejecutar las acciones contempladas en el Plan de Gestión Estratégica de Conflicto de Interés de la vigencia. | F67: Plan de Gestión de Estratégica de Conflicto de Interés Ejecutado. | G67: Equipo Interdisciplinario | H67: Ene - Mar | I67: Abr - Jun | J67: Jul-Sept | K67: Oct - Dic | L67: NA | M67: Monitoreos realizados/Monitoreos requeridos | N67: 100% Programa Antifraude y Corrupción revisado y actualizado. | O67: Las actualizaciones se realizarán según necesidad identificada. | U67: =(1/2)*100% -> 0.5 | W67: =(2/2)*100% -> 1
B68: Consolidación del Documento | C68: Cargo: Gerencia de Planeación y Gestión
C69: Nombre: Jorge Luis Giraldo González
B70: Seguimiento PAAC | C70: Jefe de Control Interno de Gestión
C71: Nombre: Rubiela de Jesús Hernández Velasco
B72: * Informe Consolidado de PQR'S: Con este informe se atenderán los requerimientos de cada componente del PAAC relacionados con este aspecto.
B73: Seguimiento: La Oficina de Control Interno de Gestión de FINDETER realizará seguimiento a la ejecución del Plan Anticorrupción en los siguientes cortes: Abril 30; Agosto 31; y Diciembre 31 de 2022

Sheet Pan Antitramite
E2: PLAN ANTITRAMITE FINDETER 2022
C9: Racionalización de Trámites (Herramienta SUIT)
B10: Findeter no contará en el año 2022 con una estrategia de racionalización de trámites, toda vez que de acuerdo con lo establecido en la Directiva Presidencial No. 2 "SIMPLIFICACIÓN DE LA INTERACCIÓN DIGITAL ENTRE LOS CIUDADANOS Y EL ESTADO y de acuerdo con concepto de la Función Pública con respecto a los "Otros Procedimientos Administrativos - OPAS" que la Entidad tiene registrados en el aplicativo SUIT: ".....no se aplica en lo ateniente a trámites o servicios porque no conllevan para el ciudadano el acceso a un derecho o el ejercicio de una actividad u obligación prevista o autorizada por la ley, por tratarse de negocios jurídicos de contenido económico, sujetos al cumplimiento de unas condiciones específicas por parte de unas personas jurídicas, las cuales no son masivas....."; En consideración a lo anterior, a través del Plan de Integración - PIN con gov.co, se solicitó la eliminación de dichos OPAS del SUIT.

Sheet PETI
D2: PLAN ESTRATÉGICO DE TECNOLOGÍAS DE LA INFORMACIÓN PETI 2022
B10: Dependencia | C10: Nombre de la tarea | D10: Descripción | E10: Política de Gestión y Desempeño | F10: Responsable de tarea | G10: Fecha Inicio | H10: Fecha Fin | I10: Fuente de Financiación | J10: Indicador (Si Aplica) | K10: Fórmula | L10: Meta 2022
B11: Dirección de Tecnología | C11: Core técnico 2 (productos no financieros) | D11: Implementar una herramienta que soporte transversalmente los procesos relacionados al core técnico. | E11: Gobierno Digital | F11: Hugo Henao | G11: 2022-07-01 | H11: 2023-08-01 | I11: Findeter | J11: Actividades Ejecutadas/actividades planeadas | K11: Actividades Ejecutadas/actividades planeadas | L11: 0.5
B12: Dirección de Tecnología | C12: Intercambio seguro (one drive) | D12: Intercambiar información de las áreas críticas por one drive (Vice Técnica, Dirección de Crédito Directo y Dirección de Operaciones) | E12: Gobierno Digital | F12: Hugo Henao | G12: 2022-02-01 | H12: 2022-09-01 | I12: Findeter | J12: Actividades Ejecutadas/actividades planeadas | K12: Actividades Ejecutadas/actividades planeadas | L12: 1
B13: Dirección de Tecnología | C13: Gestión identidades | D13: Fortalecer la seguridad de la gestion de identidades mediante la estandarización del proceso de asignación de roles y perfiles para las aplicaciones revisadas | E13: Gobierno Digital | F13: Luz Amparo Gutierrez Velazquez | G13: 2021-10-01 | H13: 2022-12-01 | I13: Findeter | J13: Actividades Ejecutadas/actividades planeadas | K13: Actividades Ejecutadas/actividades planeadas | L13: 0.8
B14: Dirección de Tecnología | C14: CRM a la Nube | D14: Migrar CRM a la Nube | E14: Gobierno Digital | F14: Hugo Henao | G14: 2022-06-01 | H14: 2023-03-01 | I14: Findeter | J14: Actividades Ejecutadas/actividades planeadas | K14: Actividades Ejecutadas/actividades planeadas | L14: 0.7

Sheet Plan de Transformación Digital
D2: PLAN DE TRANSFORMACION DIGITAL FINDETER 2022
B10: Dependencia | C10: Nombre de la tarea | D10: Descripción | E10: Política de Gestión y Desempeño | F10: Responsable de tarea | G10: Fecha Inicio | H10: Fecha Fin | I10: Fuente de Financiación | J10: Indicador (Si Aplica) | K10: Fórmula | L10: Meta 2020 | M10: Observaciones | N10: Meta Trimestre 1 | O10: Meta Trimestre 2 | P10: Meta Trimestre 3 | Q10: Meta Trimestre 4
B11: Gerencia de Planeación y Gestión - Centro de Innovación y Conocimiento - Jefatura Talento Humano | C11: Cultura digital y gestión del cambio (Transformación digital) | D11: Generar habilidades, capacidades y entregar herramientas para gestionar el cambio de manera adecuada, frente a las variaciones rápidas y constantes asociadas a las nuevas tecnologías, lo que permitirá capitalizar las oportunidades de negocio del mundo digital. Fomentar una cultura enfocada al agilísimo y centrada en lo digital. | E11: Gobierno digital | F11: Andrea Rojas | G11: 44593 | H11: 44926 | I11: Findeter | J11: Índice de adopción de habilidades y capacidades | K11: Índice de adopción de habilidades y capacidades ∑ (Cantidad de usuarios que apropiaron las habilidades y capacidades* / Cantidad de usuarios que participaron en las actividades definidas para el fomento de la cultura) | L11: 0.8 | M11: La meta se mantendrá sobre el 80% en cada corte de medición | N11: 0 | O11: 0.4 | P11: 0.4 | Q11: 0.2
B12: Presidencia - Equipo de gobierno de datos | C12: Gobierno de Datos | D12: Consolidar el gobierno de datos en Findeter mediante la documentación de componentes de información, la ejecución de ejercicios de calidad, la administración de los datos maestros de la entidad y el uso y apropiación por parte de la Entidad del Gobierno de los Datos. | E12: Gobierno digital | F12: Luz Amparo Gutierrez | G12: 44593 | H12: 44926 | I12: Findeter | J12: SPI | K12: Cumplimiento del cronograma del proyecto medido por la PMO | L12: 0.93 | M12: La meta se mantendrá sobre el 0,93 en cada corte de medición | N12: 0.2 | O12: 0.2 | P12: 0.3 | Q12: 0.3
B13: Vicepresidencia comercial Gerencia desarrollo de productos Gerencia de Planeación y Gestión | C13: Experiencia de usuario | D13: Realizar un análisis de la experiencia de usuario para un producto de financiación con el objetivo de identificar los puntos de dolor del usuario, de tal manera que se pueda diseñar y mejorar la experiencia en la interacción en todo el ciclo de vida. | E13: Gobierno digital | F13: María Eugenia Rubiano | G13: 44652 | H13: 44926 | I13: Findeter | J13: SPI | K13: Cumplimiento del cronograma del proyecto medido por la PMO | L13: 0.93 | M13: La meta se mantendrá sobre el 0,93 en cada corte de medición | N13: 0 | O13: 0.25 | P13: 0.3 | Q13: 0.45
B14: Gerencia de Planeación y Gestión Centro de Innovación y Conocimiento | C14: Optimización y automatización de procesos | D14: Orientar y rediseñar los procesos claves a entornos completamente digitales, incluyendo elementos como autenticación, firmas electrónica y digital, flujo, gestión, archivo y transferencia de documentos creados desde digital. | E14: Gobierno digital | F14: Andrea Rojas | G14: 44621 | H14: 44926 | I14: Findeter | J14: SPI | K14: Cumplimiento del cronograma del proyecto medido por la PMO | L14: 0.93 | M14: La meta se mantendrá sobre el 0,93 en cada corte de medición | N14: 0 | O14: 0.35 | P14: 0.35 | Q14: 0.3

Sheet Plan de Eficiencia Admin
D2: PLAN DE EFICIENCIA ADMINISTRATIVA FINDETER 2022
B10: No. | C10: Nombre iniciativa | D10: Descripción iniciativa | E10: Actividades que se llevan a cabo para desarrollar la iniciativa | F10: Responsable | G10: Áreas involucradas | H10: Fecha Inicio | I10: Fecha fin | J10: Fuente de Recursos
B11: 1 | C11: RPA (Automatización Robótica de Procesos) | D11: Implementar el primer BOT en FINDETER | E11: Desarrollar BOT para actividades del proceso de crédito directo | F11: Hugo Henao | G11: Dirección de Tecnología | H11: 2022-01-03 | I11: 2022-02-04 | J11: FINDETER
E12: Realizar pruebas de funcionamiento del BOT | F12: Hugo Henao | G12: Dirección de Tecnología Dirección de Crédito Vicepresidencia de Riesgos | H12: 2022-02-07 | I12: 2022-03-07 | J12: FINDETER
E13: Puesta en producción del BOT | F13: Hugo Henao | G13: Dirección de Tecnología Dirección de Crédito Vicepresidencia de Riesgos | H13: 2022-03-08 | I13: 2022-04-29 | J13: FINDETER
E14: Monitoreo y seguimiento del BOT | F14: Hugo Henao | G14: Dirección de Tecnologia | H14: 2022-05-02 | I14: 2022-06-30 | J14: FINDETER
B15: 2 | C15: Programa Uso Eficiente de Papel | D15: Estrategias para implementar y promover el uso eficiente y ahorro de papel | E15: Capacitar y sensibilizar a los colaboradores y contratistas de la Entidad sobre la importancia del uso eficiente y ahorro de papel mediante piezas informativas y campañas | F15: Samanta Armesto | G15: Gerencia de Planeación y Gestión Grupo SGI | H15: 2021-01-03 | I15: 2021-12-30 | J15: FINDETER
E16: Elaborar reportes del consumo de papel de impresiones y copias generadas y comunicar a los jefes para aplicar acciones de mejora en las dependencias que presentan mayor consumo | F16: Claudia Rojas | G16: Gerencia de Planeación y Gestión Grupo SGI | H16: 2021-01-03 | I16: 2021-12-30 | J16: FINDETER
E17: Realizar seguimiento mensual con gráficos para tener un análisis de datos de que áreas consumen más papel | F17: Claudia Rojas | G17: Gerencia de Planeación y Gestión Grupo SGI | H17: 2021-01-03 | I17: 2021-12-30 | J17: FINDETER
B18: 3 | C18: Automatización | D18: Optimizacion y automatizacion de procesos BPM | E18: Definir herramienta BPM y tramitar compra de herramienta | F18: Profesional Dirección de Tecnologia Luisa Fernanda Oviedo M | G18: Dirección de Tecnologia Gerencia de Planeación y Gestión - Grupo SGI | H18: 2021-01-01 | I18: 2022-04-29 | J18: FINDETER
E19: Diseñar proceso con metodologia BPM | F19: Luisa Fernanda Oviedo M | G19: Gerencia de Planeación y Gestión - Grupo SGI | H19: 2022-05-02 | I19: 2022-07-29 | J19: FINDETER
E20: Implementar proceso automatizado | F20: Luisa Fernanda Oviedo M | G20: Gerencia de Planeación y Gestión - Grupo SGI | H20: 2022-08-02 | I20: 2022-10-31 | J20: FINDETER
E21: Monitoreo aplicación proceso automatizado | F21: Luisa Fernanda Oviedo M | G21: Gerencia de Planeación y Gestión - Grupo SGI | H21: 2022-11-01 | I21: 2022-12-30 | J21: FINDETER

Sheet Plan Conflicto de Interés
D2: PLAN DE GESTION DE CONFLICTO DE INTERES FINDETER 2022
B10: Objetivo: | C10: Desarrollar mecanismos para prevenir y controlar la aparición de conflictos de intereses en la Entidad con el objeto de evitar la afectación del servicio y el interés general.
B12: Componente | C12: Categoría | D12: Actividades de Gestión | E12: Responsables | F12: Año 2022 | J12: Fuente
F13: Ene - Mar | G13: Abr -Jun | H13: Jul-Sept | I13: Oct - Dic
B14: Planeación | C14: Diseño de la estrategia para la gestión de conflictos de intereses | D14: Mantener y/o actualizar en la Gestión de Riesgos - Mapas de Riesgos de Corrupción del Plan Anticorrupción y Atención al Ciudadano - PAAC, la identificación de riesgos y controles frente a conflictos de intereses identificados en los procesos ó dependencias críticas. | E14: Oficial de Cumplimiento / Jaime Florez Granados | G14: Abr - Jun | I14: Oct - Dic | J14: Findeter
B15: Condiciones institucionales | C15: Comité de Gestión y Desempeño | D15: Realizar en los comités de gestión y desempeño institucional, el seguimiento al plan de acción de la estrategia de gestión de conflicto de intereses realizado por la Oficina de Control Interno de Gestión. | E15: Gerencia de Planeación y Gestión - Equipo de Gestión y Desempeño Institucional / Cesar I. Rocha Carrillo / Mauricio S. Saldarriaga L. | F15: Ene - Mar | G15: Abr - Jun | H15: Jul - Sept | I15: Oct - Dic | J15: Findeter
D16: Orientar ó asesorar legal o técnicamente a los servidores, contratistas, supervisores, coordinadores o jefes inmediatos, en la declaración de conflictos de intereses o decisión de impedimentos, recusaciones, inhabilidades o incompatibilidades. | E16: Dirección Jurídica / Carlos Andrés Quintero Ortíz / Derly Hasblaidy Tovar Rubiano | F16: Ene - Mar | G16: Abr - Jun | H16: Jul - Sept | I16: Oct - Dic | J16: Findeter
C17: Procesos y procedimientos | D17: Revisar y Ajustar la documentación de los procesos ó dependencias identificados con riesgo de posibles conflictos de intereses. | E17: Oficial de Cumplimiento / Jaime Florez Granados | G17: Abr - Jun | I17: Oct - Dic | J17: Findeter
D18: Revisar la pertinencia y, de ser el caso, ajustar el manual de contratación o procedimientos de la gestión contractual de la entidad con orientaciones para que los servidores y contratistas realicen su declaración de conflictos de intereses, si se presenta la necesidad y/o modificaciones durante la vigencia | E18: Dirección de Contratación / Isabel Cristina Martínez Mendoza / José Eladio León Menjura | G18: Abr - Jun | I18: Oct - Dic | J18: Findeter
B19: Pedagogía | C19: Sensibilización y capacitación | D19: Realizar la divulgación, sensibilización y/o capacitación relacionadas con los temas de código de Integridad, procedimiento de conflicto de intereses, el cumplimiento de la Ley 2013 de 2019 y el trámite de los impedimentos y recusaciones (según artículo 12 Ley 1437/2011) y canales institucionales dispuestos para tal efecto. | E19: Jefatura de Talento Humano / Ana Liliana Támara / Ana Sheyla Ordóñez Duarte / Ricardo Alberto Soto Barón / Angela Shiley Téllez | G19: Abr - Sept | J19: Findeter
B20: Seguimiento y evaluación | C20: Declaración de bienes, rentas y conflictos de intereses Ley 2013 de 2019 | D20: Garantizar que los servidores públicos y contratistas de la entidad obligados por la Ley 2013 de 2019 publiquen la declaración de bienes, rentas y conflicto de intereses en el aplicativo establecido por Función Pública. | E20: Jefatura de Talento Humano / Ana Liliana Támara / Ana Sheyla Ordóñez Duarte / Ricardo Alberto Soto Barón / Angela Shiley Téllez | F20: Ene - Mar | J20: Findeter
C21: Registro de las declaraciones de conflictos de intereses | D21: Realizar seguimiento y monitoreo al registro de conflictos de intereses que han surtido tramite | E21: -Oficial de Cumplimiento (Trabajadores) Jaime Flórez Granados -Secretaria General (Alta Dirección y Junta Directiva) Julieta JudithMaestre Vasquez | F21: Ene - Mar | G21: Abr - Jun | H21: Jul - Sept | I21: Oct - Dic | J21: Findeter
D22: Realizar el seguimiento y control a las actividades del plan de gestión de conflicto de interés y a la publicación de la declaración de bienes, rentas y conflictos de intereses de los servidores públicos y contratistas que se encuentran obligados por la ley 2013 de 2019 en la Entidad. | E22: Oficina de Control Interno de Gestión / Rubiela Hernández Velasco / Doris E. Marquez Silva | F22: Ene - Mar | G22: Abr - Jun | H22: Jul - Sept | I22: Oct - Dic | J22: Findeter

Sheet PTRSPI
D2: PLAN DE TRATAMIENTO DE RIESGOS DE SEGURIDAD Y PRIVACIDAD DE LA INFORMACIÓN FINDETER 2022
B7: Dependencia | C7: Nombre de la tarea | D7: Descripción | E7: Política de Gestión y Desempeño | F7: Responsable de tarea | G7: Fecha Inicio | H7: Fecha Fin | I7: Fuente de Financiación | J7: Indicador (Si Aplica) | K7: Fórmula | L7: Meta 2020 | M7: Observaciones | N7: Seguimiento Trimestre 1 | O7: Seguimiento Trimestre 2 | P7: Seguimiento Trimestre 3 | Q7: Seguimiento Trimestre 4 | R7: Meta Trimestre 1 | S7: Meta Trimestre 2 | T7: Meta Trimestre 3 | U7: Meta Trimestre 4 | V7: Ejecución - Trimestre 1 | W7: Ejecución - Trimestre 2 | X7: Ejecución - Trimestre 3 | Y7: Ejecución - Trimestre 4
B8: Vicepresidencia de Riesgos | C8: Identificación de riesgos | D8: La identificación de riesgos, que es una tarea permanente, se realiza según lo dispuestos en las metodologias establecidas en el manual SARO aprobado por la Junta Directiva | E8: Seguridad Digital | F8: Lideres de Proceso | G8: 44562 | H8: 44926 | I8: Findeter
B9: Vicepresidencia de Riesgos | C9: Medición de riesgos | D9: La medición de riesgos, que es una tarea permanente, se realiza según lo dispuestos en las metodologias establecidas en el manual SARO aprobado por la Junta Directiva, para establecer el perfil se riesgos inherente de la entidad | E9: Seguridad Digital | F9: Lideres de Proceso | G9: 44562 | H9: 44926 | I9: Findeter
B10: Vicepresidencia de Riesgos | C10: Control de riesgos | D10: El contro de riesgos, que es una tarea permanente, se realiza según lo dispuestos en las metodologias establecidas en el manual SARO aprobado por la Junta Directiva, para establecer el perfil se riesgos residual de la entidad | E10: Seguridad Digital | F10: Lideres de Proceso | G10: 44562 | H10: 44926 | I10: Findeter
B11: Vicepresidencia de Riesgos | C11: Monitoreo de riesgos | D11: El monitoreo de riesgos, que es una tarea permanente, se realiza según lo dispuestos en las metodologias establecidas en el manual SARO aprobado por la Junta Directiva, para establecer la efectividad de los controles establecios e informar a la alta dirección y a la junta directiva sobre su desempeño | E11: Seguridad Digital | F11: Vicepresidencia de riesgos | G11: 44562 | H11: 44926 | I11: Findeter
B12: Vicepresidencia de Riesgos | C12: Tratar riesgos de perdida y fuga de informaciòn grabaciones en Teams | D12: Implementar las acciones para el tratamiento de los riesgos de perdida y fuga de informaciòn de la grabaciones que se realizan por Teams | E12: Seguridad Digital | F12: Vicepresidencia de riesgos Dirección de Tecnología | G12: 44593 | H12: 44742 | I12: Findeter
B13: Vicepresidencia de Riesgos | C13: Tratar riesgo de daño, pérdida o indisponibilidad de la información debido a contagio de virus por uso de dispositivos extraibles. | D13: Implementar las acciones para el tratamiento del riesgo de daño, pérdida o indisponibilidad de la información debido a contagio de virus por uso de dispositivos de almacenamiento de información extraibles. | E13: Seguridad Digital | F13: Vicepresidencia de riesgos Dirección de Tecnología | G13: 44593 | H13: 44742 | I13: Findeter
B14: Vicepresidencia de Riesgos | C14: Tratar riesgo intercambio no seguro de informmación con terceros | D14: Implementar las acciones para el tratamiento del riesgo de intercambio no seguro de información con terceros | E14: Seguridad Digital | F14: Vicepresidencia de riesgos Dirección de Tecnología | G14: 44562 | H14: 44742 | I14: Findeter
B15: Vicepresidencia de Riesgos | C15: Perdida de información debido a su almacenamiento no seguro | D15: Perdida de información institucional debido a que la misma se almacena en equipos donde la dirección de tecnología no realiza backup | E15: Seguridad Digital | F15: Vicepresidencia de riesgos Dirección de Tecnología | G15: 44581 | H15: 44742 | I15: Findeter
B16: Vicepresidencia de Riesgos | C16: Formalización aceptación riesgo residual | D16: Dejar constancia explicita en el acta de la respectiva sesión de Junta Directiva de la aceptación del riesgo residual y del plan de tratamiento de los riesgos en la cual la Vicepresidencia de Riesgos presente el informe de gestión de riesgos. | E16: Seguridad Digital | F16: Vicepresidencia de riesgos | G16: 44652 | H16: 44925 | I16: Findeter
B17: Vicepresidencia de Riesgos | C17: Capacitación anual en los sistema de gestión de riesgo que incluye los de seguridad digital | D17: Realizar la capacitación anual de los sistema de gestión de riesgos que incluye los riesgos de seguridad de la información, ciberseguridad y seguridad digital | E17: Seguridad Digital | F17: Vicepresidencia de riesgos | G17: 44743 | H17: 44926 | I17: Findeter
B18: Vicepresidencia de Riesgos | C18: Generar informe de gestión integral de riesgos segundo semestre de 2021 | D18: De acuerdo a lo establecido en las normas aplicables semestralmente se presente informe de gestión de riesgos a la Junta Directiva y al comité de auditoria | E18: Seguridad Digital | F18: Vicepresidencia de riesgos | G18: 44593 | H18: 44742 | I18: Findeter
B19: Vicepresidencia de Riesgos | C19: Generar informe de gestión integral de riesgos primer semestre de 2022 | D19: De acuerdo a lo establecido en las normas aplicables semestralmente se presente informe de gestión de riesgos a la Junta Directiva y al comité de auditoria | E19: Seguridad Digital | F19: Vicepresidencia de riesgos | G19: 44743 | H19: 44926 | I19: Findeter

Sheet PSPI
D3: PLAN DE SEGURIDAD Y PRIVACIDAD DE LA INFORMACIÓN FINDETER 2022
B11: Dependencia | C11: Nombre de la tarea | D11: Descripción | E11: Política de Gestión y Desempeño | F11: Responsable de tarea | G11: Fecha Inicio | H11: Fecha Fin | I11: Fuente de Financiación | J11: Indicador (Si Aplica) | K11: Fórmula | L11: Meta 2020 | M11: Observaciones | N11: Seguimiento Trimestre 1 | O11: Seguimiento Trimestre 2 | P11: Seguimiento Trimestre 3 | Q11: Seguimiento Trimestre 4 | R11: Meta Trimestre 1 | S11: Meta Trimestre 2 | T11: Meta Trimestre 3 | U11: Meta Trimestre 4 | V11: Ejecución - Trimestre 1 | W11: Ejecución - Trimestre 2 | X11: Ejecución - Trimestre 3 | Y11: Ejecución - Trimestre 4
B12: Vicepresidencia de Riesgos | C12: Sensibilización y socialización temas de seguridad de la información y ciberseguridad al interior de la entidad | D12: Realizar actividades y/o publicar de forma periodica temas relacionados con seguridad de la información y/o ciberseguridad con el objetivo de fortalecer la cultura de seguridad en la entidad | E12: Seguridad Digital | F12: Carlos Alberto Guzmán Silva | G12: 44562 | H12: 44926 | I12: Findeter
B13: Vicepresidencia de Riesgos | C13: Ejecución campañas seguridad de la información y ciberseguridad para clientes exernos | D13: Realizar de campañas de seguridad seguridad de la información y/o ciberseguridad para clientes externo | E13: Seguridad Digital | F13: Carlos Alberto Guzmán Silva | G13: 44743 | H13: 44926 | I13: Findeter
B14: Vicepresidencia de Riesgos | C14: Capacitaciones de seguridad de la informaciòn a proveedores criticos | D14: Realizar capacitaciones en seguridad de la información a proveedor que brindan servicios críticos para la entidad | E14: Seguridad Digital | F14: Carlos Alberto Guzmán Silva | G14: 44593 | H14: 44926 | I14: Findeter
B15: Vicepresidencia de Riesgos | C15: Actualización activos de información procesos alcance SGSI | D15: Actualizar los activos de informacion de los procesos que soportan el alcance del SGSI | E15: Seguridad Digital | F15: Carlos Alberto Guzmán Silva | G15: 44562 | H15: 44591 | I15: Findeter
B16: Vicepresidencia de Riesgos | C16: Socialización guia de identificación y valoración de activos de información | D16: Socializar en la entidad la guía para la identificación y valoración de activos de información y capacitar a los procesos con el fin de fortalecer el concepto de activo de información, sus tipos, como se clasifican y realizar talleres practicos de levantamiento del inventario de sus activos de información. | E16: Seguridad Digital | F16: Carlos Alberto Guzmán Silva | G16: 44652 | H16: 44772 | I16: Findeter
B17: Vicepresidencia de Riesgos | C17: Capacitar a los procesos que soportan el alcance del SGSI en el manejo y concepto de activos de información | D17: Capacitar a los procesos que soportan el alcance del SGSI en el manejo y concepto de activos de información | E17: Seguridad Digital | F17: Carlos Alberto Guzmán Silva | G17: 44743 | H17: 44772 | I17: Findeter
B18: Vicepresidencia de Riesgos Vicepresidencia de Planeación | C18: Actualización procedimiento de control de documentos y registros del SGI para incluir revisión de activos de información. | D18: Actualizar el procedimiento de control de documentos y registros del SGI para incluir la revisión de los activos de información. | E18: Seguridad Digital | F18: Claudia Viviana Rojas Carlos Alberto Guzmán Silva | G18: 44621 | H18: 44650 | I18: Findeter
B19: Vicepresidencia de Riesgos Vicepresidencia de Planeación | C19: Asegurar que en el programa de la Auditoria Interna 2022 se incluyan todos los procesos que soportan el alcance del SGSI. | D19: Asegurar que en el programa de la Auditoria Interna 2022 se incluyan todos los procesos que soportan el alcance del SGSI. Verificar que en el proceso de control de gestión institucional este el programa de auditoria interna del SGSI incluyendo los procesos que soportan su alcance. | E19: Seguridad Digital | F19: Claudia Viviana Rojas Carlos Alberto Guzmán Silva | G19: 44743 | H19: 44803 | I19: Findeter
B20: Vicepresidencia de Riesgos Vicepresidencia de Planeación | C20: Capacitación a los auditores internos en el Sistema de Gestión de Seguridad de la Información. | D20: Capacitar a los auditores internos en el alcance del SGSI.Realizar reunión con Auditores para definir lecciones aprendidas de las auditorías realizadas. | E20: Seguridad Digital | F20: Luisa Fernanda Oviedo Muñoz Marlon Buendía Carlos Alberto Guzmán Silva | G20: 44682 | H20: 44742 | I20: Findeter
B21: Vicepresidencia de Riesgos Vicepresidencia de Planeación | C21: Capacitación módulo de auditoria en ISOLUCIÓN temas de calidad, ambiental y seguridad de la información | D21: Realizar jornada de capacitación del módulo de auditoria en ISOLUCIÓN temas de calidad, ambiental y seguridad de la información | E21: Seguridad Digital | F21: Luisa Fernanda Oviedo Muñoz Marlon Buendía Carlos Alberto Guzmán Silva | G21: 44718 | H21: 44752 | I21: Findeter
B22: Vicepresidencia de Riesgos Vicepresidencia de Planeación | C22: Recertificación normas ISO 14001, 9001 y 27001 | D22: Tramitar la contratación para la prestación del servicio de Auditoría Externa (Sondeo, EdN, Requerimientos, evaluación y escogencia). Realizar los trámites de legalización del contrato y las pólizas. Coordinar con la Entidad Auditora el Plan de Auditoria y comunicar período de auditoria. Coordinar cierre de Auditoria y definir las acciones para los hallazgos que resulten del proceso auditor. Realizar informe de supervisión, trámite de pago de factura, cierre y liquidación del contrato. | E22: Seguridad Digital | F22: Claudia Viviana Rojas Carlos Alberto Guzmán Silva | G22: 44713 | H22: 44925 | I22: Findeter
B23: Vicepresidencia de Riesgos | C23: Incluir requerimientos de seguridad de la información en el nuevo contrato del proveedor de custodia | D23: Incluir los requerimientos de seguridad de la información en el nuevo contrato del proveedor de custodia que se suscribirá el abril de 2022 | E23: Seguridad Digital | F23: Carlos Alberto Guzmán Silva | G23: 44562 | H23: 44681 | I23: Findeter
B24: Vicepresidencia de Riesgos Dirección de Contratación | C24: Revisión de las directrices para incluir requerimientos de seguridad de la información en los contratos | D24: Revisar con el area de contratación las directrices que se tienen establecidas para los contratos que requieren incluir requerimientos de seguridad de la información. | E24: Seguridad Digital | F24: Jose Eladio León Carlos Alberto Guzmán Silva | G24: 44593 | H24: 44650 | I24: Findeter
B25: Vicepresidencia de Riesgos | C25: Capacitación en riesgos y seguridad para supervisores de contrato | D25: Capacitar a los supervisores de contrato sobre la forma de asegurar y hacer seguimiento al cumplimiento de los requerimientos de seguridad de la información para los contratos que aplique. | E25: Seguridad Digital | F25: Carlos Alberto Guzmán Silva Diana Catalina Victor Daniel Jose Eladio León | G25: 44743 | H25: 44772 | I25: Findeter
B26: Vicepresidencia de Riesgos Jefatura Servicios Generales | C26: Realizar auditoria de seguridad a realizar al proveedor de custodia | D26: Apoyar al supervisor del contrato en la preparación de la auditoria al proveedor de Cadena Courrier SAS de acuerdo a las obligaciones y requerimientos establecidos en el contrato, con el fin de revisar la provisión de los servicios del proveedor y aspectos de seguridad de la información. Realizar la auditoria al proveedor de Cadena Courrier SAS y elaborar informe de auditoria. | E26: Seguridad Digital | F26: Claudia Yovanna Rojas Carlos Alberto Guzmán Silva | G26: 44562 | H26: 44591 | I26: Findeter
B27: Vicepresidencia de Riesgos | C27: Definición procedimiento y/o instructivo para ejecución de auditorias de seguridad de la información | D27: Definir un procedimiento y/o instructivo para ejecucion de auditorias de seguridad de la información a los proveedores de la entidad que aplique. Capacitar a los supervisores sobre procedimiento y/o instructivo para la ejecucion de auditorias de seguridad de la información a los proveedores de la entidad que aplique. | E27: Seguridad Digital | F27: Carlos Alberto Guzmán Silva | G27: 44621 | H27: 44772 | I27: Findeter
B28: Vicepresidencia de Riesgos | C28: Revisiòn de la efectividad de las reglas de correlación de eventos de seguridad | D28: Revisar la efectividad de las reglas de correlación de eventos de seguridad de la información y ciberamenazas. | E28: Seguridad Digital | F28: Carlos Alberto Guzmán Silva Dirección de Tecnología Proveedor de Seguridad | G28: 44562 | H28: 44650 | I28: Findeter
B29: Vicepresidencia de Riesgos | C29: Gestionar los eventos e incidentes de seguridad de la información y ciberseguridad | D29: Gestionar los eventos e incidentes de seguridad de la información y de ciberseguridad | E29: Seguridad Digital | F29: Carlos Alberto Guzmán Silva Haminton Yesid Paez Maldonado Hector Raul Rodriguez Proveedor de Seguridad | G29: 44562 | H29: 44926 | I29: Findeter
B30: Vicepresidencia de Riesgos | C30: Mitigación de las vulnerabilidades de la prueba anual del Q2 de 2021 | D30: Continuar con la mitigación de las vulnerabilidades de la prueba anual del Q2 de 2021 que quedaron pendientes | E30: Seguridad Digital | F30: Dirección de Tecnología Hector Raul Rodriguez | G30: 44562 | H30: 44620 | I30: Findeter
B31: Vicepresidencia de Riesgos | C31: Ejecución análisis de vulnerabilidades primera prueba anual (Q1) | D31: Ejecutar la primera prueba anual de analisis vulnerabilidades sobre la infraestructura tecnologica de la entidad (Q1-2022) | E31: Seguridad Digital | F31: Carlos Alberto Guzmán Silva | G31: 44621 | H31: 44650 | I31: Findeter
B32: Dirección de Tecnología | C32: Mitigación de vulnerabilidades primera prueba (Q1) | D32: Mitigar las vulnerabilidades identificadas en la primera prueba de vulnerabilidades (Q1-2022) | E32: Seguridad Digital | F32: Dirección de Tecnología Hector Raul Rodriguez | G32: 44652 | H32: 44742 | I32: Findeter
B33: Vicepresidencia de Riesgos | C33: Ejecución analísis de vulnerabilidades primera prueba anual (Q2) | D33: Ejecutar la segundo prueba anual de analisis vulnerabilidades sobre la infraestructura tecnologica de la entidad (Q2-2022) | E33: Seguridad Digital | F33: Carlos Alberto Guzmán Silva | G33: 44743 | H33: 44803 | I33: Findeter
B34: Dirección de Tecnología | C34: Mitigación de vulnerabilidades primera prueba (Q2) | D34: Mitigar las vulnerabilidades identificadas en la segunda prueba de vulnerabilidades (Q2-2022) | E34: Seguridad Digital | F34: Dirección de Tecnología Hector Raul Rodriguez | G34: 44805 | H34: 44926 | I34: Findeter
B35: Vicepresidencia de Riesgos | C35: Ejecución Prueba de Hacking Etico | D35: Ejecutar la prueba anual de Hacking Etico | E35: Seguridad Digital | F35: Carlos Alberto Guzmán Silva | G35: 44743 | H35: 44926 | I35: Findeter
B36: Vicepresidencia de Riesgos | C36: Ejecución Prueba de Ingeneria Social | D36: Ejecutar prueba anual de ingeneria social | E36: Seguridad Digital | F36: Carlos Alberto Guzmán Silva | G36: 44743 | H36: 44926 | I36: Findeter
B37: Vicepresidencia de Riesgos | C37: Actualizar gestión riesgos de proveedores en WRM | D37: Actualizar la gestión de riesgos de proveedores en el sistema WRM | E37: Seguridad Digital | F37: Carlos Alberto Guzmán Silva Haminton Yesid Paez Maldonado | G37: 44562 | H37: 07/30/2022 | I37: Findeter

Sheet Plan de Gest Inf Estadistica
D2: PLAN DE GESTION DE LA INFORMACIÓN ESTADÍSTICA GOBIERNO DE DATOS FINDETER 2022
B10: Objetivo: | C10: Propender por la disponibilidad, la calidad, la accesibilidad, el uso de la información estadística, así como la gestión y el aprovechamiento de registros administrativos en Findeter, aplicando lineamientos y estándares propuestos por el DANE.
B12: Componente | C12: Actividades de Gestión | D12: Descripción | E12: Responsables | F12: Año 2021 | J12: Fuente
F13: Ene - Mar | G13: Abr -Jun | H13: Jul-Sept | I13: Oct - Dic
B14: 1. Planeación Estadística | C14: Identificar y alinear en el Plan Estratégico y en los mapas por dependencia las líneas de acción relacionados con la producción, reporte ó difusión de información estadística en la Entidad. | D14: Identificación y Alineación del Plan Estratégico frente a los lineamientos de la política de gestión de la información estadítica establecidos por el DANE para la toma de decisiones. | E14: Gerencia de Planeación y Gestión - Equipo Planeación Estratégica | G14: Abr-Jun | J14: Findeter
B15: 2. Fortalecimiento de registros administrativos | C15: Identificar los tipos de registros administrativos y operaciones estadísticas que tiene Findeter en la actualidad | D15: Tomando como base las definiciones dadas por el DANE sobre "registro administrativo" y "operación estadística", analizar e identificar estos tipos de información estadística que tiene la Entidad. | E15: Equipo de Gobierno de Datos (Coordinar el desarrollo con las areas ) | F15: Ener - Jun | J15: Findeter
B16: 2. Fortalecimiento de registros administrativos | C16: Documentar la ficha técnica, manuales y guías para la recolección de datos de los registros administrativos identificados Nota: Por lo menos dos registros administrativos para la vigencia 2022 | D16: La documentación de la ficha técnica de los registros administrativos debe contener lo siguiente: -Objetivo -Marco Normativo -Unidad de Observación -Incluir las variables. | E16: Equipo de Gobierno de Datos en Coordinación con las Dependencias Misionales a cargo de los registros administrativos seleccionados | G16: Abr - Jun | J16: Findeter
B17: 2. Fortalecimiento de registros administrativos | C17: Documentar las fichas metodológicas, manuales y guías para la recolección de datos de las operaciones estadísticas identificadas Nota: Por lo menos dos operaciones estadísticas para la vigencia 2022. | D17: La documentación de la ficha metodológica de las operaciones estadísticas debe contener lo siguiente: - Nombre de la operación estadística y sigla: - Entidad responsable: - Tipo de operación estadística: - Antecedentes - Objetivo general - Objetivos Específicos - Alcance temático - Conceptos básicos - Variables - Indicadores - Nomenclaturas y clasificaciones - Universo de estudio - Población objetivo - Unidades estadísticas - Marco Estadístico - Fuentes - Cobertura geográfica - Periodo de referencia - Periodo y periodicidad de recolección - Método de recolección - Desagregación de resultados - Frecuencia de Entrega de resultados - Periodos disponibles para los resultados - Medio de difususión y acceso | E17: Equipo de Gobierno de Datos en Coordinación con las Dependencias a cargo de las operaciones estadísticas seleccionadas | G17: Abr - Sept | J17: Findeter
B18: 2. Fortalecimiento de registros administrativos | C18: Identificar y documentar los procesos de anonimización de las bases de datos de los registros administrativos identificados de la entidad. Nota: Por lo menos para dos bases de datos de registros administrativos identificados en la vigencia 2022. | D18: Identificación y documentación de los procesos de anonimización de las bases de datos de los registros administrativos identificados. | E18: Equipo de Gobierno de Datos / Seguridad de la Información | H18: Jul - Sept | J18: Findeter
B19: 3. Calidad Estadística | C19: Implementar en los procesos de producción de información estadística de la entidad, los lineamientos del proceso estadístico definidos por el DANE y aplicables a la Entidad. Nota: Los procesos de producción de información estadística están basados en los registros administrativos y en la operaciones estadísticas identificadas. Mínimo dos en la vigencia 2022. | D19: Implementación en los procesos de producción de información estadística de la entidad, lineamientos del proceso estadístico definidos por el DANE tales como: - la Norma técnica de la calidad estadística definida por el DANE. - el Código nacional de buenas prácticas estadísticas - los lineamientos para documentación de operaciones, definidos por el DANE. - los lineamientos generales para el diseño de la operación estadística. - los lineamientos para la documentación de metadatos, a partir de los estándares DDI y Dublin Core. - el estándar SDMX para la difusión o transmisión de datos. - las Nomenclaturas y clasificaciones definidas por el SEN. - la Metodología para el desarrollo de Planes Estadísticos. - la ficha metodológica de las operaciones estadísticas. - la Guía de metadatos de registros administrativos (DANE). - la Guía para la anonimización de bases de datos en el Sistema Estadístico Nacional | E19: Coordina Equipo de Gobierno de Datos | G19: Abr - Dic | J19: Findeter
B20: 3. Calidad Estadística | C20: Publicar en la página web de la entidad, para disposición de los grupos de interés, la información establecida por el DANE descrita en la política de gestión de la información estadística aplicable a la Entidad. | D20: Publicación en la página web de la entidad, para disposición de los grupos de interés, la información establecida por el DANE descrita en la política de gestión de la información estadística que sea aplicable a la Entidad, entre otros: - las bases de datos de sus registros administrativos. - las bases de datos anonimizadas de las operaciones estadísticas. - la ficha técnica de indicadores. - los indicadores o estadísticas agregadas georreferenciadas. - la ficha metodológica de sus operaciones estadísticas. - el documento metodológico de operaciones estadísticas, para disposición de los grupos de valor de la entidad. - los protocolos de transferencia de datos de operaciones estadísticas, para disposición de los grupos de valor de la entidad.. | E20: Equipo de Gobierno de Datos / Gerencia de Comunicaciones | I20: Dic | J20: Findeter

Sheet Consolidado (hidden)
D1: PLAN ANTICORRUPCIÓN Y DE ANTENCIÓN AL CIUDADANO
B5: Plan | C5: Fuente de Financiación | D5: Componente Plan Anticorrupción y Atención al Ciudadano | E5: Categoría | F5: Nombre de la tarea | G5: Descripción | H5: Responsable de tarea | I5: Fecha Inicio | J5: Fecha Fin | K5: Proceso | L5: Área Organizativa | M5: Política de Gestión y Desempeño
B6: PAA.2018.OAP | C6: 'Fuente de recursos: Funcionamiento | D6: 1. Riesgos de Corrupción | E6: 1.2 Construcción del mapa de riesgos de corrupción | F6: Publicar periódicamente en la página web el mapa de riesgos de corrupción. | G6: Para asegurar la publicación en la página web del mapa de riesgos de corrupción vigente, se realizarán publicaciones periódicas, de acuerdo con los ajustes que se realicen al mapa. | H6: Sergio Esteban Varela Guzman | I6: 2018-02-01 | J6: 2018-12-31 | K6: Est.1.4 | L6: Oficina Asesora de Planeación | M6: Política de Transparencia, acceso a la información pública y lucha contra la corrupción
B7: PAA.2018.OAP | C7: 'Fuente de recursos: Funcionamiento | D7: 1. Riesgos de Corrupción | E7: 1.4 Monitoreo y revisión | F7: Realizar el seguimiento al estado de los riesgos de corrupción | G7: Realizar seguimiento a las modificaciones, creaciones o eliminaciones de los riesgos de corrupción. Adicionalmente, verificar la documentación del monitoreo para este tipo de riesgos. Este seguimiento se realiza cada cuatro meses, durante mayo, septiembre y enero. Producto: documentación periódica en el SMGI del estado de los riesgos de corrupción | H7: Daissy Tatiana Santos Yate | I7: 2018-05-02 | J7: 2018-12-31 | K7: Est.1.4 | L7: Oficina Asesora de Planeación | M7: Política de Transparencia, acceso a la información pública y lucha contra la corrupción
B8: PAA.2018.OAP | C8: 'Fuente de recursos: Funcionamiento | D8: 1. Riesgos de Corrupción | E8: 1.3 Consulta y divulgación | F8: Realizar la consulta y divulgación del mapa de riesgos de corrupción | G8: Disponer de los mecanismos necesarios para que todos los servidores de la Entidad y partes interesadas, se hagan participes en la construcción del mapa de riesgos de corrupción. Presentar a los servidores de la Entidad, la actualización realizada al mapa de riesgos institucional, mediante los diferentes canales de comunicación disponibles. Externamente, se realizará la publicación del mapa de riesgos actualizado en la pagina web. Producto: evidencias de consulta y divulgación del mapa | H8: Daissy Tatiana Santos Yate | I8: 2018-03-01 | J8: 2018-05-21 | K8: Est.1.4 | L8: Oficina Asesora de Planeación | M8: Política de Transparencia, acceso a la información pública y lucha contra la corrupción
B9: PAA.2018.OAP | C9: 'Fuente de recursos: Funcionamiento | D9: 1. Riesgos de Corrupción | E9: 1.1 Política de administración de riesgos | F9: Divulgar de los ajustes realizados a la guía de riesgos | G9: Socializar los ajustes realizados frente a la administración de los riesgos de corrupción. Producto: evidencias de actividades de socialización por diferentes canales de comunicación. | H9: Daissy Tatiana Santos Yate | I9: 2018-04-01 | J9: 2018-05-21 | K9: Est.1.4 | L9: Oficina Asesora de Planeación | M9: Política de Transparencia, acceso a la información pública y lucha contra la corrupción
B10: PAA.2018.OAP | C10: 'Fuente de recursos: Funcionamiento | D10: 1. Riesgos de Corrupción | E10: 1.1 Política de administración de riesgos | F10: Actualizar la guía de riesgos institucional | G10: Actualización de la guía de riesgos, de acuerdo con los ajustes realizados en 2017 en el SMGI | H10: Daissy Tatiana Santos Yate | I10: 2018-02-01 | J10: 2018-05-04 | K10: Est.1.4 | L10: Oficina Asesora de Planeación | M10: Política de Transparencia, acceso a la información pública y lucha contra la corrupción
B11: PAA.2018.OAP | C11: 'Fuente de recursos: Funcionamiento | D11: 2. Racionalización de Trámites | E11: 2.3 Racionalización de trámites | F11: Elaborar la Estrategia de Racionalización de Trámites 2018 | G11: Coordinar con las áreas responsables de los tramites del Ministerio, inscritos en SUIT, la estrategia de racionalización para 2018 y registrar las acciones definidas en el SUIT | H11: Fernando Jose Velasquez Avila | I11: 2018-01-30 | J11: 2018-02-28 | K11: Est.1.1 | L11: Oficina Asesora de Planeación | M11: Política de Racionalización de trámites
B12: PAA.2018.OAP | C12: 'Fuente de recursos: Funcionamiento | D12: 2. Racionalización de Trámites | E12: 2.3 Racionalización de trámites | F12: Realizar seguimiento en SUIT al registro de avances de la Estrategia de Racionalización | G12: Realizar seguimiento y apoyo para el registro de los avances de la Estrategia de racionalización en el SUIT para cada cuatrimestre. | H12: Fernando Jose Velasquez Avila | I12: 2018-05-01 | J12: 2018-12-31 | K12: Est.1.1 | L12: Oficina Asesora de Planeación | M12: Política de Racionalización de trámites
B13: Ini.2015.EA1.001 Fortalecer el análisis, toma de decisiones y divulgación de la información del Sistema General de Regalías (SGR) | C13: 'Fuente de recursos: Funcionamiento | D13: 3. Rendición de Cuentas | E13: 3.1 Información de calidad y en lenguaje comprensible | F13: Mejorar el diseño del subsitio SGR en el portal del MHCP | G13: Realizar el levantamiento de requerimientos para mejorar el diseño del subsitio SGR en el portal www.minhacienda.gov.co Producto: Propuesta de diseño del subsitio SGR (fase 1) finalizada. | H13: Erika Viviana Mancipe Moncada | I13: 2018-09-01 | J13: 2018-12-31 | K13: Mis.4.9 | L13: Despacho del Viceministro General | M13: Política de Transparencia, acceso a la información pública y lucha contra la corrupción - Política de Participación Ciudadana en la Gestión Pública
B14: Ini.2015.EA1.002 Fortalecer la divulgación del mensaje estratégico del Ministerio de Hacienda y Crédito Público | C14: Fuente de recursos: Funcionamiento | D14: 3. Rendición de Cuentas | E14: 3.2 Dialogo de doble vía con la ciudadanía y sus organizaciones | F14: Visitar universidades | G14: El Ministerio de Hacienda y Crédito Público, busca propiciar espacios de interacción con la comunidad estudiantil con el fin de contar los avances de los diferentes temas a cargo de la entidad y atender las inquietudes que en el desarrollo del ejercicio se puedan presentar con el fin de afianzar el intercambio de información con los estudiantes. Producto: tres visitas a universidades | H14: Olga Ximena Novoa Gonzalez | I14: 2018-03-01 | J14: 2018-12-31 | K14: Est.1.3 | L14: Comunicaciones | M14: Política de Participación Ciudadana en la Gestión Pública
B15: Ini.2015.EA1.002 Fortalecer la divulgación del mensaje estratégico del Ministerio de Hacienda y Crédito Público | C15: 'Fuente de recursos: Funcionamiento | D15: 3. Rendición de Cuentas | E15: 3.1 Información de calidad y en lenguaje comprensible | F15: Fortalecer los espacios de comunicación interna | G15: La sección digital La Pizarra en la intranet tiene como propósito generar información de interés para los servidores públicos que permita conocer las actividades que realiza el Ministerio tanto interna como externamente y comunicarlas. A través de éste canal se realizarán campañas de sensibilización en lo correspondiente al componente rendición de cuentas. Producto: cuatro publicaciones | H15: Olga Ximena Novoa Gonzalez | I15: 2018-03-01 | J15: 2018-12-31 | K15: Est.1.3 | L15: Comunicaciones | M15: Política de Transparencia, acceso a la información pública y lucha contra la corrupción
B16: Ini.2015.EA1.002 Fortalecer la divulgación del mensaje estratégico del Ministerio de Hacienda y Crédito Público | C16: 'Fuente de recursos: Funcionamiento | D16: 3. Rendición de Cuentas | E16: 3.3 Incentivos para motivar la cultura de la rendición y petición de cuentas | F16: Realizar conversatorios ciudadanos | G16: Fortalecer las relaciones entre el Ministerio de Hacienda y Crédito Público con los ciudadanos, en especial con el sector académico conformado por: investigadores, estudiantes y docentes; mediante la realización de conversatorios que tendrán como eje central los temas de actual coyuntura económica en el país; y en los que además se presentará la gestión que desarrollada para poder a disposición de los ciudadanos la Biblioteca ?José María del Castillo y Rada?, junto con sus servicios y colecciones disponibles. Producto: un conversatorio | H16: Carlos Andres Gil Santamaria | I16: 2018-07-01 | J16: 2018-12-31 | K16: Esp.1.1 | L16: Comunicaciones | M16: Política de Transparencia, acceso a la información pública y lucha contra la corrupción - Política de Participación Ciudadana en la Gestión Pública
B17: Ini.2015.EA1.002 Fortalecer la divulgación del mensaje estratégico del Ministerio de Hacienda y Crédito Público | C17: 'Fuente de recursos: Funcionamiento | D17: 3. Rendición de Cuentas | E17: 3.4 Evaluación y retroalimentación a la gestión institucional | F17: Realizar el ejercicio de Audiencia Pública de Rendición de Cuentas | G17: La Audiencia Pública es un encuentro de explicación y reflexión sobre los resultados de la gestión del periodo agosto de 2017 ? julio 2018 donde se informa y aclaran dudas sobre temas cruciales para la interlocución y deliberación colectiva con la ciudadanía. Producto: un ejercicio de audiencia | H17: Olga Ximena Novoa Gonzalez | I17: 2018-06-01 | J17: 2018-12-31 | K17: Est.1.3 | L17: Comunicaciones | M17: Política de Transparencia, acceso a la información pública y lucha contra la corrupción - Política de Participación Ciudadana en la Gestión Pública
B18: Ini.2015.EA1.002 Fortalecer la divulgación del mensaje estratégico del Ministerio de Hacienda y Crédito Público | C18: 'Fuente de recursos: Funcionamiento | D18: 3. Rendición de Cuentas | E18: 3.2 Dialogo de doble vía con la ciudadanía y sus organizaciones | F18: Participar en Ferias Ciudadanas | G18: El Programa Feria Nacional de Servicio al Ciudadano (FNSC) nos comparte el cronograma de los municipios donde se hará presencia, la programación está sujeta a los ajustes que realice el Departamento Nacional de Planeación (DNP) como líder de dichas ferias. El Ministerio acompaña estos ejercicios y de una manera clara entrega información de interés a la ciudadanía. Producto: participación en dos ferias | H18: Olga Ximena Novoa Gonzalez | I18: 2018-03-01 | J18: 2018-12-31 | K18: Est.1.3 | L18: Comunicaciones | M18: Política de Participación Ciudadana en la Gestión Pública
B19: Ini.2015.EA1.002 Fortalecer la divulgación del mensaje estratégico del Ministerio de Hacienda y Crédito Público | C19: 'Fuente de recursos: Funcionamiento | D19: 3. Rendición de Cuentas | E19: 3.4 Evaluación y retroalimentación a la gestión institucional | F19: Realizar el ejercicio de Audiencia Pública de Rendición de Cuentas. | G19: A través de la Audiencia Pública se abordarán los temas de recursos relacionados con el Ocad Paz derivado del Acuerdo Final para la Terminación del Conflicto y la Construcción de una Paz Estable y Duradera. Producto: un ejercicio de audiencia | H19: Olga Ximena Novoa Gonzalez | I19: 2018-02-01 | J19: 2018-06-30 | K19: Est.1.3 | L19: Comunicaciones | M19: Política de Transparencia, acceso a la información pública y lucha contra la corrupción - Política de Participación Ciudadana en la Gestión Pública
B20: PAA.2018.DA | C20: 'Fuente de recursos: Funcionamiento | D20: 4. Mecanismos para mejorar la atención al ciudadano | E20: 4.4 Normativo y procedimental | F20: Socializar a funcionarios y Lideres de Procesos con responsabilidades en atención y respuesta a solicitudes de acceso a la información. | G20: Realizar piezas publicitarias, dando a conocer las características a tener en cuenta en la atención a las solicitudes de acceso a la información, derechos de petición de interés general, derecho de petición de interés particular, derecho de petición de consulta, petición entre autoridades y socializarlas por los canales internos de comunicación del Ministerio de Hacienda y Crédito Público. | H20: Carlos Andres Gil Santamaria | I20: 2018-02-02 | J20: 2018-12-31 | K20: Esp.1.1 | L20: Dirección Administrativa | M20: Política de Servicio al ciudadano
B21: PAA.2018.DA | C21: 'Fuente de recursos: Funcionamiento | D21: 4. Mecanismos para mejorar la atención al ciudadano | E21: 4.4 Normativo y procedimental | F21: Actualizar los instrumentos de Gestión de la Información | G21: Actualizar según la TRD aprobada por el Archivo General de la Nación el inventario de activos de información e índice de información clasificada y reservada. | H21: Carlos Andres Gil Santamaria | I21: 2018-08-03 | J21: 2018-12-31 | K21: Apo.4.3 | L21: Dirección Administrativa | M21: Política de Servicio al ciudadano
B22: PAA.2018.DA | C22: 'Fuente de recursos: Funcionamiento | D22: 4. Mecanismos para mejorar la atención al ciudadano | E22: 4.4 Normativo y procedimental | F22: Revisar y actualizar de la caracterización grupos de valor del Ministerio de Hacienda y Crédito Público. | G22: Adelantar la actualización de la caracterización de grupos de valor que interactúan con los servicios que brinda el Ministerio de Hacienda y Crédito Público, realizando mesas de trabajo con las áreas involucradas. Entregable: Caracterización de usuarios MHCP | H22: Carlos Andres Gil Santamaria | I22: 2018-02-02 | J22: 2018-12-31 | K22: Esp.1.1 | L22: Dirección Administrativa | M22: Política de Servicio al ciudadano
B23: Ini.2015.EA1.003 Implementar el portal central de transparencia fiscal | C23: Fuente de recursos: Cooperación Suiza y Funcionamiento | D23: 5. Mecanismos para la transparencia y acceso a la información | E23: 5.1 Lineamientos de transparencia activa | F23: Publicar tres diferentes reportes de la ejecución física del Presupuesto General de la Nación en inversión y funcionamiento. | G23: Publicar a junio 30 de 2018 tres diferentes reportes que den cuenta de la ejecución física del Presupuesto General de la Nación, no solo para la inversión sino también para el funcionamiento. | H23: Claudia Marcela Numa Paez | I23: 2018-01-01 | J23: 2018-06-30 | K23: Mis.2.2 | L23: Dirección General de Presupuesto Público Nacional | M23: Política de Transparencia, acceso a la información pública y lucha contra la corrupción
B24: Ini.2015.EA1.003 Implementar el portal central de transparencia fiscal | C24: Fuente de recursos: Cooperación Suiza y Funcionamiento | D24: 5. Mecanismos para la transparencia y acceso a la información | E24: 5.1 Lineamientos de transparencia activa | F24: Diseñar, dar a conocer y poner en práctica la estrategia de divulgación del Portal a la ciudadanía. | G24: Diseñar, dar a conocer y poner en práctica antes del 31 de diciembre de 2018 la estrategia de divulgación del Portal a la ciudadanía con el fin de colaborar en los ya establecidos procesos de veedurías ciudadanas a los recursos públicos. | H24: Claudia Marcela Numa Paez | I24: 2018-01-01 | J24: 2018-12-31 | K24: Mis.2.2 | L24: Dirección General de Presupuesto Público Nacional | M24: Política de Transparencia, acceso a la información pública y lucha contra la corrupción
B25: PAA.2018.DA | C25: 'Fuente de recursos: Funcionamiento | D25: 5. Mecanismos para la transparencia y acceso a la información | E25: 5.1 Lineamientos de transparencia activa | F25: Gestionar los procesos de contratación a través de SECOP II. | G25: Realizar continuamente por parte de los abogados la publicación de cada una de las etapas de contratación en la plataforma del sistema electrónico de la contratación publica, portal único de Contratación ? SECOP II, con el fin de que lo puedan observar y participar los interesados, y a su vez lo conozcan los entes de control, las veedurías y terceros, en cumplimiento de Ley 80 de 1993, Ley 1150 de 2007 y Decreto 1082 de 2015. | H25: Sonia Milena Hernandez Nariño | I25: 2018-01-01 | J25: 2018-12-31 | K25: Apo.4.1 | L25: Dirección Administrativa | M25: Política de Transparencia, acceso a la información pública y lucha contra la corrupción
B26: PAA.2018.DA | C26: 'Fuente de recursos: Funcionamiento | D26: 5. Mecanismos para la transparencia y acceso a la información | E26: 5.4 Criterio diferencial de accesibilidad | F26: Validar los requisitos para asegurar el acceso de la información en los diferentes canales del Ministerio a los grupos indígenas, étnicos, culturales y personas con discapacidad. | G26: Realizar mesas de trabajo, para establecer los requisitos necesarios que permita asegurar el acceso a la información a estos grupos. Entregable: Documento requisitos. | H26: Carlos Andres Gil Santamaria | I26: 2018-02-02 | J26: 2018-12-29 | K26: Esp.1.1 | L26: Dirección Administrativa | M26: Política de Transparencia, acceso a la información pública y lucha contra la corrupción
B27: Ini.2015.RI1.001 Fortalecer el clima organizacional de la Entidad | C27: 'Fuente de recursos: Funcionamiento | D27: 6. Otras Iniciativas | E27: Rutas de Creación de Valor | F27: Desarrollar actividades encaminadas a la sensibilización y apropiación del Código de Integridad. | G27: Realizar actividades enfocadas a la sensibilización y apropiación del Código de Integridad del servidor público, como parte del Plan Institucional de Capacitación 2018. | H27: Vilma Patricia Ferreira Lugo | I27: 2018-03-01 | J27: 2018-12-31 | K27: Apo.2.2 | L27: Dirección Administrativa | M27: Política de Gestión Estratégica del Talento Humano - Política de Integridad
